Workbook

Sheet RANKING 2017
A1: RANKING NACIONAL DE ENDURANCE ECUADOR 2015
A3: CAMPEONATO DE EQUIPOS
C4: EQUIPO | D4: CAPITAN | E4: PUNTAJE | F4: JINETES
A5: 1 | B5: CAMPEÓN NACIONAL | C5: =+EQUIPOS!C8 -> ENDURANCE AZUAY | D5: =+EQUIPOS!D8 -> MARIA CONSUELO VELEZ | E5: =+EQUIPOS!U8 -> 2922.57 | F5: =+EQUIPOS!E8 -> PABLO VINTIMILLA | G5: =+EQUIPOS!F8 -> BERNARDA GONZALEZ | H5: =+EQUIPOS!G8 -> CLAUDIA LOYOLA | I5: =+EQUIPOS!H8 -> HECTOR ALMEIDA | J5: =+EQUIPOS!I8 -> JOSE ANDRADE | K5: =+EQUIPOS!J8 -> MARIA CONSUELO VELEZ
A6: 2 | B6: VICECAMPEÓN NACIONAL | C6: =+EQUIPOS!C9 -> SELECT | D6: =+EQUIPOS!D9 -> ARMANDO SERRANO | E6: =+EQUIPOS!U9 -> 1117.08 | F6: =+EQUIPOS!E9 -> MANUELA JARAMILLO | G6: =+EQUIPOS!F9 -> BERNARDA LETORT | H6: =+EQUIPOS!G9 -> JOSE LETORT MENA | I6: =+EQUIPOS!H9 -> ARMANDO SERRANO | J6: =+EQUIPOS!I9 -> LUIS MASAPANTA | K6: =+EQUIPOS!J9 -> MARIO CANDO
A7: 3 | C7: =+EQUIPOS!C10 -> EQUINOCCIAL | D7: =+EQUIPOS!D10 -> BERNARDO DARQUEA | E7: =+EQUIPOS!U10 -> 861.084 | F7: =+EQUIPOS!E10 -> 0 | G7: =+EQUIPOS!F10 -> 0 | H7: =+EQUIPOS!G10 -> RECALDE JUAN JOSE | I7: =+EQUIPOS!H10 -> DARQUEA RICARDO | J7: =+EQUIPOS!I10 -> DARQUEA GABRIEL | K7: =+EQUIPOS!J10 -> DARQUEA ANDRES
A9: CATEGORÍA ELITE ABIERTA
C10: JINETE | D10: PUNTAJE
A11: 1 | B11: CAMPEÓN NACIONAL | C11: =+'ELITE ABIERTA'!D8 -> ALMEIDA AYALA HECTOR | D11: =+'ELITE ABIERTA'!O8 -> 1152.77
A12: 2 | B12: VICECAMPEÓN NACIONAL | C12: =+'ELITE ABIERTA'!D9 -> LOYOLA MARIA CLAUDIA | D12: =+'ELITE ABIERTA'!O9 -> 828.824
A13: 3 | C13: =+'ELITE ABIERTA'!D10 -> MORABOWEN CESAR | D13: =+'ELITE ABIERTA'!O10 -> 689.6
A14: 4 | C14: =+'ELITE ABIERTA'!D11 -> ESTRADA CARLOS | D14: =+'ELITE ABIERTA'!O11 -> 669.424
A15: 5 | C15: =+'ELITE ABIERTA'!D12 -> VELEZ MARIA CONSUELO | D15: =+'ELITE ABIERTA'!O12 -> 576.2
A17: CATEGORÍA ELITE JUVENIL
C18: JINETE | D18: PUNTAJE
A19: 1 | B19: CAMPEÓN NACIONAL | C19: =+'ELITE JUVENIL'!D8 -> GONZALEZ BERNARDA | D19: =+'ELITE JUVENIL'!O8 -> 964
A20: 2 | B20: VICECAMPEÓN NACIONAL | C20: =+'ELITE JUVENIL'!D9 -> JARAMILLO MANUELA | D20: =+'ELITE JUVENIL'!O9 -> 597.18
A21: 3 | C21: =+'ELITE JUVENIL'!D10 -> MORABOWEN MOSQUERA CESAR | D21: =+'ELITE JUVENIL'!O10 -> 542.16
A22: 4 | C22: =+'ELITE JUVENIL'!D11 -> DARQUEA RICARDO | D22: =+'ELITE JUVENIL'!O11 -> 355.68
A23: 5 | C23: =+'ELITE JUVENIL'!D12 -> LOYOLA TEODORO ANDRES | D23: =+'ELITE JUVENIL'!O12 -> 208
A26: CATEGORÍA ELITE CABALLOS
C27: JINETE | D27: JINETE/DUEÑO | E27: PUNTAJE
A28: 1 | B28: CAMPEÓN NACIONAL | C28: =+'ELITE CABALLOS'!D8 -> ASRAEL | D28: =+'ELITE CABALLOS'!E8 -> BERNARDO GONZALEZ | E28: =+'ELITE CABALLOS'!P8 -> 563.4
A29: 2 | B29: VICECAMPEÓN NACIONAL | C29: =+'ELITE CABALLOS'!D9 -> AMARETO | D29: =+'ELITE CABALLOS'!E9 -> LETORT BERNARDA | E29: =+'ELITE CABALLOS'!P9 -> 542.58
A30: 3 | C30: =+'ELITE CABALLOS'!D10 -> KAFIR HA | D30: =+'ELITE CABALLOS'!E10 -> HECTOR ALMEIDA AYALA | E30: =+'ELITE CABALLOS'!P10 -> 491.16
A31: 4 | C31: =+'ELITE CABALLOS'!D11 -> CALEÑA CMB | D31: =+'ELITE CABALLOS'!E11 -> MORABOWEN CESAR | E31: =+'ELITE CABALLOS'!P11 -> 488.4
A32: 5 | C32: =+'ELITE CABALLOS'!D12 -> SC SADIQ | D32: =+'ELITE CABALLOS'!E12 -> HECTOR ALMEIDA AYALA | E32: =+'ELITE CABALLOS'!P12 -> 450.2
A34: CATEGORÍA BINOMIOS ABIERTA
C35: JINETE | D35: CABALLO | E35: PUNTAJE
A36: 1 | B36: CAMPEÓN NACIONAL | C36: =+'BINOMIOS ABIERTA'!D8 -> ESTRADA CARLOS | D36: =+'BINOMIOS ABIERTA'!F8 -> SC SHADID | E36: =+'BINOMIOS ABIERTA'!Q8 -> 538.224
A37: 2 | B37: VICECAMPEÓN NACIONAL | C37: =+'BINOMIOS ABIERTA'!D9 -> LOYOLA CLAUDIA MARIA | D37: =+'BINOMIOS ABIERTA'!F9 -> PATACON | E37: =+'BINOMIOS ABIERTA'!Q9 -> 498.6
A38: 3 | C38: =+'BINOMIOS ABIERTA'!D10 -> ALMEIDA AYALA HECTOR | D38: =+'BINOMIOS ABIERTA'!F10 -> AVENTURERO | E38: =+'BINOMIOS ABIERTA'!Q10 -> 403.6
A39: 4 | C39: =+'BINOMIOS ABIERTA'!D11 -> ALMEIDA AYALA HECTOR | D39: =+'BINOMIOS ABIERTA'!F11 -> KAFIR HA | E39: =+'BINOMIOS ABIERTA'!Q11 -> 375.96
A40: 5 | C40: =+'BINOMIOS ABIERTA'!D12 -> NOBOA MAURICIO | D40: =+'BINOMIOS ABIERTA'!F12 -> LIA | E40: =+'BINOMIOS ABIERTA'!Q12 -> 363.5
A42: CATEGORÍA BINOMIOS LIVIANOS
C43: JINETE | D43: CABALLO | E43: PUNTAJE
A44: 1 | B44: CAMPEÓN NACIONAL | C44: =+'BINOMIOS LIVIANOS'!D8 -> GONZALEZ BERNARDA | D44: =+'BINOMIOS LIVIANOS'!F8 -> ASRAEL | E44: =+'BINOMIOS LIVIANOS'!Q8 -> 563.4
A45: 2 | B45: VICECAMPEÓN NACIONAL | C45: =+'BINOMIOS LIVIANOS'!D9 -> MORABOWEN MOSQUERA CESAR | D45: =+'BINOMIOS LIVIANOS'!F9 -> CALEÑA CMB | E45: =+'BINOMIOS LIVIANOS'!Q9 -> 545.52
A46: 3 | C46: =+'BINOMIOS LIVIANOS'!D10 -> RICARDO DARQUEA | D46: =+'BINOMIOS LIVIANOS'!F10 -> NABU | E46: =+'BINOMIOS LIVIANOS'!Q10 -> 283.904
A47: 4 | C47: =+'BINOMIOS LIVIANOS'!D11 -> GONZALES BERNARDA | D47: =+'BINOMIOS LIVIANOS'!F11 -> POLACO | E47: =+'BINOMIOS LIVIANOS'!Q11 -> 240.4
A48: 5 | C48: =+'BINOMIOS LIVIANOS'!D12 -> MANUELA JARAMILLO | D48: =+'BINOMIOS LIVIANOS'!F12 -> AMARETO | E48: =+'BINOMIOS LIVIANOS'!Q12 -> 228.38
A50: CATEGORÍA AMATEUR ABIERTA
C51: JINETE | D51: PUNTAJE
A52: 1 | B52: CAMPEÓN NACIONAL | C52: =+'AMATEUR ABIERTA'!D8 -> JUNE TATE | D52: =+'AMATEUR ABIERTA'!O8 -> 359.76
A53: 2 | B53: VICECAMPEÓN NACIONAL | C53: =+'AMATEUR ABIERTA'!D9 -> DIEGO CASTILLO | D53: =+'AMATEUR ABIERTA'!O9 -> 332.56
A54: 3 | C54: =+'AMATEUR ABIERTA'!D10 -> GONZALEZ XIMENA | D54: =+'AMATEUR ABIERTA'!O10 -> 260.02
A55: 4 | C55: =+'AMATEUR ABIERTA'!D11 -> MONCAYO DANILO | D55: =+'AMATEUR ABIERTA'!O11 -> 235.68
A56: 5 | C56: =+'AMATEUR ABIERTA'!D12 -> FALCONI FRANCISCO | D56: =+'AMATEUR ABIERTA'!O12 -> 129.28
A58: CATEGORÍA AMATEUR JUVENIL
C59: JINETE | D59: PUNTAJE
A60: 1 | B60: CAMPEÓN NACIONAL | C60: =+'AMATEUR JUVENIL'!D8 -> MASAPANTA LUIS | D60: =+'AMATEUR JUVENIL'!O8 -> 195.52
A61: 2 | B61: VICECAMPEÓN NACIONAL | C61: =+'AMATEUR JUVENIL'!D9 -> PEREZ SANDRO | D61: =+'AMATEUR JUVENIL'!O9 -> 137.6
A62: 3 | C62: =+'AMATEUR JUVENIL'!D10 -> ANDRES DARQUEA | D62: =+'AMATEUR JUVENIL'!O10 -> 129.28
A63: 4 | C63: =+'AMATEUR JUVENIL'!D11 -> CALERO MARIA ISABEL | D63: =+'AMATEUR JUVENIL'!O11 -> 122.48
A64: 5 | C64: =+'AMATEUR JUVENIL'!D12 -> DARQUEA GABRIEL | D64: =+'AMATEUR JUVENIL'!O12 -> 122.32
A66: CATEGORÍA AMATEUR MENORES
C67: JINETE | D67: PUNTAJE
A68: 1 | B68: CAMPEÓN NACIONAL | C68: =+'AMATEUR MENORES'!D8 -> ANDRADE FELIPE ANDRES | D68: =+'AMATEUR MENORES'!O8 -> 231.8
A69: 2 | B69: VICECAMPEÓN NACIONAL | C69: =+'AMATEUR MENORES'!D9 -> LOPEZ JUAN RAFAEL | D69: =+'AMATEUR MENORES'!O9 -> 130.4
A70: 3 | C70: =+'AMATEUR MENORES'!D10 -> DONOSO JULIAN | D70: =+'AMATEUR MENORES'!O10 -> 83.41
A71: 4 | C71: =+'AMATEUR MENORES'!D11 -> 0 | D71: =+'AMATEUR MENORES'!O11 -> 0
A72: 5 | C72: =+'AMATEUR MENORES'!D12 -> 0 | D72: =+'AMATEUR MENORES'!O12 -> 0
A74: CATEGORÍA NOVICIOS CABALLOS
C75: JINETE | D75: JINETE/DUEÑO | E75: PUNTAJE
A76: 1 | B76: CAMPEÓN NACIONAL | C76: =+'CABALLOS NOVICIOS'!D8 -> LIA | D76: =+'CABALLOS NOVICIOS'!E8 -> MAURICIO NOBOA | E76: =+'CABALLOS NOVICIOS'!P8 -> 363.5
A77: 2 | B77: VICECAMPEÓN NACIONAL | C77: =+'CABALLOS NOVICIOS'!D9 -> GS RASHID | D77: =+'CABALLOS NOVICIOS'!E9 -> DIEGO CASTILLO | E77: =+'CABALLOS NOVICIOS'!P9 -> 332.56
A78: 3 | C78: =+'CABALLOS NOVICIOS'!D10 -> MARAVILLA | D78: =+'CABALLOS NOVICIOS'!E10 -> HECTOR ALMEIDA AYALA | E78: =+'CABALLOS NOVICIOS'!P10 -> 260.72
A79: 4 | C79: =+'CABALLOS NOVICIOS'!D11 -> BERNARDA | D79: =+'CABALLOS NOVICIOS'!E11 -> XIMENA GONZALEZ | E79: =+'CABALLOS NOVICIOS'!P11 -> 256.576
A80: 5 | C80: =+'CABALLOS NOVICIOS'!D12 -> GH ROSCO | D80: =+'CABALLOS NOVICIOS'!E12 -> PABLO VINTIMILLA | E80: =+'CABALLOS NOVICIOS'!P12 -> 249.6
A82: CATEGORÍA PROMOCIONAL ABIERTA
C83: JINETE | D83: PUNTAJE
A84: 1 | B84: CAMPEÓN NACIONAL | C84: =+'PR ABIERTA'!D8 -> CORO RODRIGO | D84: =+'PR ABIERTA'!O8 -> 196.08
A85: 2 | B85: VICECAMPEÓN NACIONAL | C85: =+'PR ABIERTA'!D9 -> MONCAYO FERNANDO | D85: =+'PR ABIERTA'!O9 -> 113.52
A86: 3 | C86: =+'PR ABIERTA'!D10 -> CONTRERAS JONATHAN | D86: =+'PR ABIERTA'!O10 -> 97.36
A87: 4 | C87: =+'PR ABIERTA'!D11 -> TORRES JHONATHAN | D87: =+'PR ABIERTA'!O11 -> 94.16
A88: 5 | C88: =+'PR ABIERTA'!D12 -> HIDALGO GUSTAVO | D88: =+'PR ABIERTA'!O12 -> 68.8
A90: CATEGORÍA PROMOCIONAL JUVENIL
C91: JINETE | D91: PUNTAJE
A92: 1 | B92: CAMPEÓN NACIONAL | C92: =+'PR JUVENIL'!D8 -> NOROÑA JORDAN | D92: =+'PR JUVENIL'!O8 -> 68.8
A93: 2 | B93: VICECAMPEÓN NACIONAL | C93: =+'PR JUVENIL'!D9 -> GABRIEL DARQUEA | D93: =+'PR JUVENIL'!O9 -> 68.8
A94: 3 | C94: =+'PR JUVENIL'!D10 -> BARBARA ESPINOZA | D94: =+'PR JUVENIL'!O10 -> 65.36
A95: 4 | C95: =+'PR JUVENIL'!D11 -> JHON CANDELEJO | D95: =+'PR JUVENIL'!O11 -> 32
A96: 5 | C96: =+'PR JUVENIL'!D12 -> 0 | D96: =+'PR JUVENIL'!O12 -> 0
A98: CATEGORÍA PROMOCIONAL MENORES
C99: JINETE | D99: PUNTAJE
A100: 1 | B100: CAMPEÓN NACIONAL | C100: =+'PR MENORES'!D8 -> CORREA JUAN MARTIN | D100: =+'PR MENORES'!O8 -> 60.8
A101: 2 | B101: VICECAMPEÓN NACIONAL | C101: =+'PR MENORES'!D9 -> ESPINOZA NATALIA | D101: =+'PR MENORES'!O9 -> 58.176
A102: 3 | C102: =+'PR MENORES'!D10 -> CASTILLO DAFNE | D102: =+'PR MENORES'!O10 -> 32
A103: 4
A104: 5
A106: CATEGORÍA PROMOCIONAL INFANTIL
C107: JINETE | D107: PUNTAJE
A108: 1 | B108: CAMPEÓN NACIONAL | C108: =+'PR INFANTIL'!D8 -> DARQUEA EMILIO | D108: =+'PR INFANTIL'!O8 -> 131.2
A109: 2 | B109: VICECAMPEÓN NACIONAL | C109: =+'PR INFANTIL'!D9 -> MOYA MARTINA | D109: =+'PR INFANTIL'!O9 -> 67.2
A110: 3 | C110: =+'PR INFANTIL'!D10 -> JULIAN NOBOA | D110: =+'PR INFANTIL'!O10 -> 64
A111: 4 | C111: =+'PR INFANTIL'!D11 -> 0 | D111: =+'PR INFANTIL'!O11 -> 0
A112: 5
A114: CATEGORÍA PROMOCIONAL ADULTO/MENOR
C115: MENOR | D115: PUNTAJE
A116: 1 | B116: CAMPEÓN NACIONAL | C116: =+'PR ADULTO-MENOR'!C8 -> CASTILLO DAFNE | D116: =+'PR ADULTO-MENOR'!O8 -> 64.64
A117: 2 | B117: VICECAMPEÓN NACIONAL | C117: =+'PR ADULTO-MENOR'!C9 -> SERRANO OLIVIA | D117: =+'PR ADULTO-MENOR'!O9 -> 63.184
A118: 3 | C118: =+'PR ADULTO-MENOR'!C10 -> JARA RAFAELA | D118: =+'PR ADULTO-MENOR'!O10 -> 32.32
A119: 4 | C119: =+'PR ADULTO-MENOR'!C11 -> MOYA MARTINA | D119: =+'PR ADULTO-MENOR'!O11 -> 32
A120: 5 | C120: =+'PR ADULTO-MENOR'!C12 -> CORREA DAVID | D120: =+'PR ADULTO-MENOR'!O12 -> 29.232

Sheet CAMPEONES 2017
B2: CAMPEONATO ECUATORIANO DE ENDURANCE
B4: CATEGORÍA ELITE ABIERTA CHASQUI 3
D5: JINETE | E5: CABALLO
B6: 1 | C6: CAMPEÓN NACIONAL | D6: ALMEIDA HECTOR | E6: AVENTURERO
B7: 2 | C7: VICECAMPEÓN NACIONAL
B8: 3
B9: 4
B11: CATEGORÍA ELITE JUVENIL CHASQUI 3
D12: JINETE | E12: CABALLO
B13: 1 | C13: CAMPEÓN NACIONAL | D13: GONZALEZ BERNARDA | E13: ASRAEL
B14: 2 | C14: VICECAMPEÓN NACIONAL
B15: 3
B17: CATEGORÍA ELITE ABIERTA CHASQUI 2
D18: JINETE | E18: CABALLO
B19: 1 | C19: CAMPEÓN NACIONAL
B20: 2 | C20: VICECAMPEÓN NACIONAL
B21: 3
B23: CATEGORÍA ELITE JUVENIL CHASQUI 2
D24: JINETE | E24: CABALLO
B25: 1 | C25: CAMPEÓN NACIONAL | D25: MORABOWEN MOSQUERA CESAR | E25: CALEÑA CMB
B26: 2 | C26: VICECAMPEÓN NACIONAL
B27: 3
B30: CATEGORÍA ABIERTA CHASQUI 1
D31: JINETE | E31: CABALLO
B32: 1 | C32: CAMPEÓN NACIONAL | D32: LOYOLA MARIA CLAUDIA | E32: PATACON
B33: 2 | C33: VICECAMPEÓN NACIONAL
B34: 3
B36: CATEGORÍA MENORES CHASQUI 1
D37: JINETE | E37: CABALLO
B38: 1 | C38: CAMPEÓN NACIONAL | D38: ANDRADE FELIPE ANDRES | E38: SHAKIRA
B39: 2 | C39: VICECAMPEÓN NACIONAL
B40: 3
B42: CATEGORÍA ABIERTA CHASQUI 1
D43: JINETE | E43: CABALLO
B44: 1 | C44: CAMPEÓN NACIONAL
B45: 2 | C45: VICECAMPEÓN NACIONAL
B46: 3
B48: CATEGORÍA JUVENIL CHASQUI 1
D49: JINETE | E49: CABALLO
B50: 1 | C50: CAMPEÓN NACIONAL
B51: 2 | C51: VICECAMPEÓN NACIONAL
B52: 3

Sheet SUPER CHASQUI
C2: PREMIO SUPER CHASQUI DE ENDURANCE
B4: SUPER CHASQUI 3 JINETES (3000 Km)
C5: JINETE
B6: 1 | C6: ALMEIDA AYALA HECTOR | D6: 3732
B7: 2 | C7: ANDRADE JOSE DANIEL | D7: 3055
B8: 3
B10: SUPER CHASQUI 3 CABALLOS
C11: JINETE | D11: CABALLO
B12: 1
B13: 2
B14: 3
B16: SUPER CHASQUI 3 BINOMIOS
C17: JINETE | D17: CABALLO
B18: 1
B19: 2
B20: 3
B22: SUPER CHASQUI 2 JINETES (2000 Km)
C23: JINETE | D23: KILOMETRAJE
C24: RIBADENEIRA SOFIA | D24: 2967
C25: WEEMAELS NATHALIE | D25: 2957
C26: GONZALEZ BERNARDA | D26: 2944
C27: LETORT DUEÑAS BERNARDA | D27: 2546
C28: RECALDE JUAN JOSE | D28: 2353
C29: MORILLO MAURICIO | D29: 2232
C30: MORABOWEN CESAR | D30: 2209
C31: RIBADENEIRA ARTURO | D31: 2190
C32: NEUMANN KARINA | D32: 2108
C33: GOMEZ MICHILENA ALEXANDER | D33: 2085
C34: LOYOLA VINTIMILLA MARIA CLAUDIA | D34: 2020
B38: SUPER CHASQUI 2 CABALLOS (2000 Km)
C39: JINETE | D39: PROPIETARIO/JINETE | E39: KILOMETRAJE
B40: 1 | C40: AR FAISAN | D40: ARTURO RIBADENEIRA | E40: 2117
B41: 2
B42: 3
B44: SUPER CHASQUI 2 BINOMIOS (2000 Km)
C45: JINETE | D45: KILOMETRAJE
B46: 1
B47: 2
B48: 3
B50: SUPER CHASQUI 1 JINETES (1000 Km)
C51: JINETE | D51: KILOMETRAJE
B52: 1 | C52: DARQUEA RAFAELA | D52: 1980
B53: 2 | C53: VINTIMILLA SERRANO PABLO XAVIER | D53: 1955
B54: 3 | C54: GUARDERAS BARAHONA SEBASTIAN | D54: 1943
B55: 4 | C55: NOBOA MAURICIO | D55: 1672
B56: 5 | C56: SERRANO VALLEJO FELIPE | D56: 1579
B57: 6 | C57: MORENO CORDOVEZ DANIELA | D57: 1496
B58: 7 | C58: VELEZ MENA MARIA CONSUELO | D58: 1489
B59: 8 | C59: WRAY VINUEZA MATEO | D59: 1474
B60: 9 | C60: MONROY BAROJA MARIA FERNANDA | D60: 1444
B61: 10 | C61: DARQUEA BERNARDO | D61: 1443
B62: 11 | C62: KOPPEL OSWALDO | D62: 1408
B63: 12 | C63: CORNEJO BURNEO MANUEL | D63: 1298
B64: 13 | C64: CANDO MARIO | D64: 1296
B65: 14 | C65: MORILLO SERGIO | D65: 1247
B66: 15 | C66: DAVILA GORDILLO JUAN DIEGO | D66: 1115
B67: 16 | C67: DARQUEA RICARDO | D67: 1084
B68: 17 | C68: LETORT MENA JOSE | D68: 1032
B69: 18
B70: 19
B71: 20
B73: SUPER CHASQUI 1 CABALLOS (1000 Km)
C74: JINETE | D74: PROPIETARIO/JINETE | E74: KILOMETRAJE
B75: 1 | C75: ANGOSTURA FRODO | D75: RIBADENEIRA ARTURO | E75: 1970
B76: 2 | C76: CENTAURO | D76: HECTOR ALMEIDA | E76: 1916
B77: 3 | C77: FHARA CONEJA | D77: DARQUEA BERNARDO | E77: 1807
B78: 4 | C78: BOM BOM | D78: JUAN JOSE RECALDE | E78: 1676
B79: 5 | C79: CG ALLASKI | D79: WEEMAELS NATHALIE | E79: 1604
B80: 6 | C80: MISTERIO | D80: MORILLO MAURICIO | E80: 1572
B81: 7 | C81: QUITA PENAS | D81: ILIANA RUIZ | E81: 1419
B82: 8 | C82: PATACON | D82: LOYOLA VINTIMILLA MARIA CLAUDIA | E82: 1364
B83: 9 | C83: AMARETO | D83: JOSE LETORT | E83: 1239
B84: 10 | C84: ASRAEL | D84: BERNARDA GONZALEZ | E84: 1222
B85: 11 | C85: KAFIR HA | D85: HECTOR ALMEIDA | E85: 1219
B86: 12 | C86: WISKY | D86: MAURICIO NOBOA | E86: 1137
B87: 13 | C87: SERENATA CMB | D87: CÉSAR MORABOWEN | E87: 1091
B88: 14 | C88: AVENTURERO | D88: HECTOR ALMEIDA | E88: 1062
B89: 15 | C89: SHAKIRA | D89: LETORT JOSE IGNACIO | E89: 1023
B90: 16 | C90: TRUENO | D90: DARQUEA BERNARDO | E90: 1011
B91: 17
B92: 18
B93: 19
B94: 20
B95: 21
B96: 22
B97: 23
B98: 24
B99: 25
B101: SUPER CHASQUI 1 BINOMIOS (1000 Km)
C102: JINETE | D102: CABALLO | E102: KILOMETRAJE
B103: 1 | C103: HECTOR ALMEIDA | D103: CENTAURO | E103: 1670
B104: 2 | C104: WEEMAELS NATHALIE | D104: CG ALLASKI | E104: 1600
B105: 3 | C105: MORILLO MAURICIO | D105: MISTERIO | E105: 1458
B106: 4 | C106: DARQUEA BERNARDO | D106: FHARA CONEJA | E106: 1362
B107: 5 | C107: RIBADENEIRA SOFIA | D107: AR FAISAN | E107: 1261
B108: 6 | C108: LOYOLA VINTIMILLA MARIA CLAUDIA | D108: PATACON | E108: 1115
B109: 7
B110: 8
B111: 9
B112: 10
B113: 11
B114: 12
B115: 13

Sheet EQUIPOS
B2: PUNTAJE ACUMULADO
B3: EQUIPOS
B5: EQUIPOS | K5: PUNTAJES
K6: 2017
C7: EQUIPO | D7: CAPITAN | E7: JINETES | K7: I CHONE | L7: II CHONE | M7: III CHONE | N7: IV CHONE | O7: V CHONE | P7: VI CHONE | Q7: VII CHONE | R7: VIII CHONE | S7: IX CHONE | T7: X CHONE | U7: ACUMULADO
B8: 1 | C8: ENDURANCE AZUAY | D8: MARIA CONSUELO VELEZ | E8: PABLO VINTIMILLA | F8: BERNARDA GONZALEZ | G8: CLAUDIA LOYOLA | H8: HECTOR ALMEIDA | I8: JOSE ANDRADE | J8: MARIA CONSUELO VELEZ | K8: 416 | M8: 585.08 | N8: 440.1 | P8: 448.4 | R8: 472.59 | T8: =240.2+240.2+80 -> 560.4 | U8: =SUM(K8:T8) -> 2922.57
B9: 2 | C9: SELECT | D9: ARMANDO SERRANO | E9: MANUELA JARAMILLO | F9: BERNARDA LETORT | G9: JOSE LETORT MENA | H9: ARMANDO SERRANO | I9: LUIS MASAPANTA | J9: MARIO CANDO | L9: 362.88 | Q9: 490.2 | R9: 264 | U9: =SUM(K9:T9) -> 1117.08
B10: 3 | C10: EQUINOCCIAL | D10: BERNARDO DARQUEA | G10: RECALDE JUAN JOSE | H10: DARQUEA RICARDO | I10: DARQUEA GABRIEL | J10: DARQUEA ANDRES | M10: 352.22 | O10: 215.824 | R10: 293.04 | U10: =SUM(K10:T10) -> 861.084 | AN10: =+$U$8-U9 -> 1805.49 | AO10: =VLOOKUP(B10,#REF!,3,FALSE) -> 
B11: 4 | C11: HACIENDA HATO VERDE | D11: CESAR MORABOWEN | E11: MORABOWEN AGUIRRE CESAR | F11: MORABOWEN MOSQUERA CESAR | G11: MORILLO MAURICIO | H11: DAVALOS JORGE EDUARDO | I11: MORILLO SERGIO | J11: MARÍA ISABEL CALERO | M11: 553.18 | U11: =SUM(K11:T11) -> 553.18
B12: 5 | U12: =SUM(K12:T12) -> 0
B13: 6 | U13: 0
B14: 7 | U14: 0
B15: 8 | U15: 0
B16: 9 | U16: =SUM(K16:T16) -> 0
B17: 10 | U17: 0
B18: 11 | U18: 0
B19: 12 | U19: 0
B20: 13 | U20: 0
B21: 14 | U21: 0
B22: 15 | U22: 0
B23: 16 | U23: 0

Sheet ELITE ABIERTA
B2: PUNTAJE ACUMULADO
B3: CATEGORÍA ABIERTA ELITE
B5: ELITE ABIERTA | E5: PUNTAJES
E6: 2017
C7: CODIGO | D7: JINETE | E7: I CHONE | F7: II CHONE | G7: III CHONE | H7: IV CHONE | I7: V CHONE | J7: VI CHONE | K7: VII CHONE | L7: VIII CHONE | M7: IX CHONE | N7: X CHONE | O7: ACUMULADO
B8: 1 | C8: A035 | D8: ALMEIDA AYALA HECTOR | E8: 144 | F8: 159.6 | G8: 216.36 | H8: 83.41 | K8: 163.4 | M8: 145.8 | N8: 240.2 | O8: =SUM(E8:N8) -> 1152.77
B9: 2 | C9: A248 | D9: LOYOLA MARIA CLAUDIA | E9: 80 | G9: 128.32 | H9: 130.4 | I9: 121.904 | J9: 160.2 | L9: 128 | N9: 80 | O9: =SUM(E9:N9) -> 828.824
B10: 3 | C10: A045 | D10: MORABOWEN CESAR | E10: 160 | F10: 134.4 | G10: 240.4 | K10: 154.8 | O10: 689.6
B11: 4 | C11: A250 | D11: ESTRADA CARLOS | E11: 64 | F11: 67.2 | G11: 121.904 | I11: 128.32 | K11: 126 | M11: 162 | O11: 669.424
B12: 5 | C12: A055 | D12: VELEZ MARIA CONSUELO | E12: 120 | H12: 87.8 | I12: 160.4 | J12: 128 | L12: 80 | O12: 576.2
B13: 6 | C13: J034 | D13: LOZADA JOSE ARMANDO | E13: 76 | H13: 130.4 | I13: 115.49 | J13: 64 | L13: 54.4 | N13: 121.6 | O13: 561.89
B14: 7 | C14: A192 | D14: ANDRADE JOSE DANIEL | H14: 146.7 | L14: 160.2 | M14: 153.9 | O14: 460.8
B15: 8 | C15: A033 | D15: SERRANO ARMANDO | I15: 240.4 | K15: 172 | O15: 412.4
B16: 9 | C16: A171 | D16: WEEMAELS NATHALIE | F16: 124 | K16: 137.6 | L16: 144.18 | O16: 405.78
B17: 10 | C17: A060 | D17: RECALDE JUAN JOSE | F17: 117.8 | G17: 228.38 | K17: 58.48 | O17: 404.66
B18: 11 | C18: A097 | D18: MALO ANDREA | E18: 114 | H18: 154.85 | J18: 121.6 | O18: 390.45
B19: 12 | C19: A249 | D19: LETORT BERNARDA | F19: 168 | K19: 146.2 | M19: 67.2 | O19: 381.4
B20: 13 | C20: A046 | D20: MAURICIO NOBOA | G20: 126 | K20: 119.7 | M20: 117.8 | O20: 363.5
B21: 14 | C21: A092 | D21: VINTIMILLA PABLO | E21: 152 | L21: 152.19 | O21: 304.19
B22: 15 | C22: A058 | D22: RIBADENEIRA ARTURO | G22: 160.4 | I22: 136.34 | O22: 296.74
B23: 16 | C23: A067 | D23: CANDO MARIO | F23: =67.2*0.8 -> 53.76 | I23: 152.38 | K23: 68.8 | O23: 274.94
B24: 17 | C24: A026 | D24: LETORT JOSE | F24: 127.68 | K24: 65.36 | M24: 63.84 | O24: 256.88
B25: 18 | C25: A201 | D25: ALLAICO JOSE EMILIO | H25: 163 | O25: 163
B26: 19 | C26: A056 | D26: MORILLO MAURICIO | G26: 152.38 | O26: 152.38
B27: 20 | C27: A059 | D27: PORTILLA FELIPE | I27: 144.36 | O27: 144.36
B28: 21 | C28: A214 | D28: MOYA MIGUEL ANGEL | M28: 137.7 | O28: 137.7
B29: 22 | C29: A303 | D29: DAVIS JACQUELINE | I29: 126 | O29: 126
B30: 23 | C30: A057 | D30: DAVILA JUAN DIEGO | H30: 70.24 | O30: 70.24
B31: 24 | C31: A200 | D31: MALO DIANA | H31: 66.73 | O31: 66.73
B32: 25 | C32: A172 | D32: BURBANO VILLAVICENCIO JAIME | O32: =SUM(E32:N32) -> 0
B33: 26 | C33: A185 | D33: RAMIREZ FABRICIO | O33: 0
B34: 27 | C34: A200 | D34: MANCHENO GALO | O34: 0
B35: 28 | C35: A081 | D35: KOPPEL OSWALDO | O35: 0
L37: =IF(J37>=60,"CLASIFICADO A 60 Km LIBRE y 80 Km NOVICIO",IF(J37>=40,"CLASIFICADO A 40 Km LIBRE y 60 Km NOVICIO","")) -> 
L55: =IF(J55>=60,"CLASIFICADO A 60 Km LIBRE y 80 Km NOVICIO",IF(J55>=40,"CLASIFICADO A 40 Km LIBRE y 60 Km NOVICIO","")) -> 

Sheet ELITE JUVENIL
B2: PUNTAJE ACUMULADO
B3: CATEGORÍA JUVENIL ELITE
B5: ELITE JUVENIL | E5: PUNTAJES
E6: 2017
C7: CODIGO | D7: JINETE | E7: I CHONE | F7: II CHONE | G7: III CHONE | H7: IV CHONE | I7: V CHONE | J7: VI CHONE | K7: VII CHONE | L7: VIII CHONE | M7: IX CHONE | N7: X CHONE | O7: ACUMULADO
B8: 1 | C8: J063 | D8: GONZALEZ BERNARDA | G8: 240.4 | H8: 163 | J8: 160.2 | L8: 160.2 | N8: 240.2 | O8: =SUM(E8:N8) -> 964
B9: 2 | C9: J079 | D9: JARAMILLO MANUELA | F9: 67.2 | G9: 228.38 | K9: 172 | M9: 129.6 | O9: 597.18
B10: 3 | C10: M022 | D10: MORABOWEN MOSQUERA CESAR | F10: 168 | G10: 160.4 | M10: 53.76 | N10: 160 | O10: 542.16
B11: 4 | C11: J019 | D11: DARQUEA RICARDO | G11: 65.36 | H11: 128.32 | M11: 162 | O11: 355.68
B12: 5 | C12: J096 | D12: LOYOLA TEODORO ANDRES | J12: 80 | L12: 128 | O12: 208
B13: 6 | C13: J008 | D13: GOMEZ ALEXANDER | F13: 134.4 | O13: 134.4
B14: 7 | C14: J034 | D14: ANDRADE JOSE DANIEL | O14: =SUM(E14:N14) -> 0
B15: 8 | C15: J096 | D15: LOYOLA TEODORO ANDRES | O15: 0
B16: 9 | C16: J011 | D16: LETORT BERNARDA | O16: 0
B17: 10 | C17: J020 | D17: SERRANO FELIPE | O17: 0
B18: 11 | C18: J111 | D18: DAVALOS JOAQUINA | O18: 0
B19: 12 | C19: J021 | D19: CORNEJO MANUEL | O19: 0
B20: 13 | O20: =SUM(E20:N20) -> 0
B21: 14 | O21: 0
B22: 15 | O22: 0
B23: 16 | O23: =SUM(E23:N23) -> 0
B24: 17 | O24: 0
B25: 18 | O25: 0
B26: 19 | O26: 0
L28: =IF(J28>=60,"CLASIFICADO A 60 Km LIBRE y 80 Km NOVICIO",IF(J28>=40,"CLASIFICADO A 40 Km LIBRE y 60 Km NOVICIO","")) -> 
L39: =IF(J39>=60,"CLASIFICADO A 60 Km LIBRE y 80 Km NOVICIO",IF(J39>=40,"CLASIFICADO A 40 Km LIBRE y 60 Km NOVICIO","")) -> 

Sheet ELITE MENORES (hidden)
B2: PUNTAJE ACUMULADO
B3: CATEGORÍA MENORES ELITE
B5: ELITE MENORES | E5: PUNTAJES
E6: 2017
C7: CODIGO | D7: JINETE | E7: I CHONE | F7: II CHONE | G7: III CHONE | H7: IV CHONE | I7: V CHONE | J7: VI CHONE | K7: VII CHONE | L7: VIII CHONE | M7: IX CHONE | N7: X CHONE | O7: ACUMULADO
B8: 1 | O8: =SUM(E8:N8) -> 0
B9: 2 | O9: 0
B10: 3 | O10: 0
B11: 4 | O11: 0
B12: 5 | O12: 0
B13: 6 | O13: 0
B14: 7 | O14: 0
B15: 8 | O15: 0
B16: 9 | O16: 0
B17: 10 | O17: 0
B18: 11 | O18: 0
B19: 12 | O19: 0
B20: 13 | O20: 0
B21: 14 | O21: 0
B22: 15 | O22: =SUM(E22:N22) -> 0
B23: 16 | O23: 0
B24: 17 | O24: 0
B25: 18 | O25: 0
B26: 19 | O26: 0
L28: =IF(J28>=60,"CLASIFICADO A 60 Km LIBRE y 80 Km NOVICIO",IF(J28>=40,"CLASIFICADO A 40 Km LIBRE y 60 Km NOVICIO","")) -> 
L39: =IF(J39>=60,"CLASIFICADO A 60 Km LIBRE y 80 Km NOVICIO",IF(J39>=40,"CLASIFICADO A 40 Km LIBRE y 60 Km NOVICIO","")) -> 

Sheet ELITE CABALLOS
B2: PUNTAJE ACUMULADO
B3: CATEGORÍA CABALLOS ELITE
B5: ELITE CABALLOS | F5: PUNTAJES
F6: 2017
C7: CODIGO | D7: CABALLO | E7: DUEÑO/JINETE | F7: I CHONE | G7: II CHONE | H7: III CHONE | I7: IV CHONE | J7: V CHONE | K7: VI CHONE | L7: VII CHONE | M7: VIII CHONE | N7: IX CHONE | O7: X CHONE | P7: ACUMULADO
B8: 1 | C8: C232 | D8: ASRAEL | E8: BERNARDO GONZALEZ | I8: 163 | M8: 160.2 | O8: 240.2 | P8: =SUM(F8:O8) -> 563.4
B9: 2 | C9: C046 | D9: AMARETO | E9: LETORT BERNARDA | G9: 168 | H9: 228.38 | L9: 146.2 | P9: =SUM(F9:O9) -> 542.58
B10: 3 | C10: C114 | D10: KAFIR HA | E10: HECTOR ALMEIDA AYALA | G10: 159.6 | H10: 216.36 | O10: 115.2 | P10: =SUM(F10:O10) -> 491.16
B11: 4 | C11: C238 | D11: CALEÑA CMB | E11: MORABOWEN CESAR | G11: 168 | H11: 160.4 | N11: 53.76 | O11: 160 | P11: =+G11+H11+O11 -> 488.4
B12: 5 | C12: C140 | D12: SC SADIQ | E12: HECTOR ALMEIDA AYALA | F12: 144 | J12: 160.4 | N12: 145.8 | P12: =SUM(F12:O12) -> 450.2
B13: 6 | C13: C197 | D13: PATACON | E13: LOYOLA CLAUDIA MARIA | F13: 80 | I13: 130.4 | K13: 160.2 | M13: 128 | O13: 80 | P13: =SUM(I13:N13) -> 418.6
B14: 7 | C14: C473 | D14: SC SHADID | E14: ESTRADA CARLOS | F14: 64 | G14: 67.2 | H14: 121.9 | J14: 128.32 | L14: 126 | N14: 162 | P14: =SUM(J14:N14) -> 416.32
B15: 8 | C15: C115 | D15: AVENTURERO | E15: HECTOR ALMEIDA AYALA | L15: 163.4 | O15: 240.2 | P15: =SUM(F15:O15) -> 403.6
B16: 9 | C16: C200 | D16: MULATA | E16: RECALDE JUAN JOSE | G16: 117.8 | H16: 228.38 | P16: 346.18
B17: 10 | C17: C209 | D17: AISHA | E17: MARIA CONSUELO VELEZ MENA | F17: 120 | I17: 87.8 | K17: 128 | P17: 335.8
B18: 11 | C18: C371 | D18: CARRUZO | E18: BENITO JARMILLO | J18: 152.38 | L18: 172 | P18: 324.38
B19: 12 | C19: C229 | D19: BULERIA CMB | E19: MORABOWEN CESAR | F19: 160 | L19: 154.8 | P19: 314.8
B20: 13 | C20: C098 | D20: AR BOMBON | E20: RECALDE JUAN JOSE | J20: 126 | L20: 61.92 | N20: 116.64 | P20: 304.56
B21: 14 | C21: C418 | D21: NABU | E21: BERNARDO DARQUEA | J21: 128.32 | N21: 162 | P21: 290.32
B22: 15 | C22: C417 | D22: MANDI CMB | E22: MORABOWEN CESAR | G22: 134.4 | H22: 152.38 | P22: 286.78
B23: 16 | C23: C282 | D23: MAGIC MENES | E23: FELIPE ANDRADE | H23: 115.49 | I23: 146.7 | P23: 262.19
B24: 17 | C24: C413 | D24: RO EVITA | E24: NATHALIE WEEMAELS | G24: 124 | L24: 137.6 | P24: 261.6
B25: 18 | C25: C502 | D25: MONARCH | E25: LOYOLA MARIA CLAUDIA | H25: 128.32 | J25: 121.904 | N25: 153.9 | P25: 250.224
B26: 19 | C26: C394 | D26: POLACO | E26: GONZALEZ BERNARDA | H26: 240.4 | P26: =SUM(F26:O26) -> 240.4
B27: 20 | C27: C329 | D27: SERENATA CMB | E27: MORABOWEN CESAR | H27: 240.4 | P27: 240.4
B28: 21 | C28: C454 | D28: MD YALA | E28: ARMANDO SERRANO | J28: 240.4 | P28: 240.4
B29: 22 | C29: C441 | D29: SANTOO | E29: VELEZ MENA MARIA CONSUELO | K29: 121.6 | M29: 80 | P29: 201.6
B30: 23 | C30: C445 | D30: ANGOSTURA FRODO | E30: ARTURO RIBADENEIRA | J30: 136.34 | L30: 55.04 | P30: 191.38
B31: 24 | C31: C370 | D31: JEREZ | E31: JOSE LETORT | L31: 172 | P31: 172
B32: 25 | C32: C004 | D32: TEQUILA | E32: GONZALEZ BERNARDO | I32: 163 | P32: 163
B33: 26 | C33: C096 | D33: AR FAISAN | E33: ARTURO RIBADENEIRA | H33: 160.4 | P33: 160.4
B34: 27 | C34: C333 | D34: KADIN | E34: GONZALEZ BERNARDA | K34: 160.2 | P34: 160.2
B35: 28 | C35: C072 | D35: QUITA PENAS | E35: FELIPE ANDRADE | M35: 160.2 | P35: 160.2
B36: 29 | C36: C343 | D36: PV RIGUEL | E36: PABLO VINTIMILLA | M36: 152.19 | P36: 152.19
B37: 30 | C37: C252 | D37: BIANCA | E37: VINTIMILLA PABLO | F37: 152 | P37: 152
B38: 31 | C38: C204 | D38: AR ALBATSYN | E38: PORTILLA FELIPE | J38: 144.36 | P38: 144.36
B39: 32 | C39: C093 | D39: CG ALLASKI | E39: WEEMAELS NATHALIE | M39: 144.18 | P39: 144.18
B40: 33 | C40: C174 | D40: ZT SATFANDU | E40: MIGUEL MOYA | N40: 137.7 | P40: 137.7
B41: 34 | C41: C143 | D41: ALI | E41: BERNARDO DARQUEA | H41: 65.36 | N41: 67.2 | P41: 132.56
B42: 35 | C42: C097 | D42: CENTAURO | E42: JAIME BURBANO | I42: 83.41 | P42: 83.41
B43: 36 | C43: C234 | D43: EL PADRINO | E43: VELEZ MENA MARIA CONSUELO | I43: 66.73 | P43: 66.73
B44: 37 | C44: C402 | D44: KADAFY | E44: BERNARDO DARQUEA | H44: 58.48 | P44: 58.48
B45: 38 | C45: C286 | D45: NEGRO EG | E45: BERNARDO DARQUEA | P45: =SUM(F45:O45) -> 0
B46: 39 | C46: C206 | D46: AS GITANA | E46: BERNARDO DARQUEA | P46: 0
B47: 40 | C47: C175 | D47: CLAW | E47: BERNARDO DARQUEA | P47: 0
B48: 41 | C48: C165 | D48: DIAMANTE | E48: BERNARDO DARQUEA | P48: 0
B49: 42 | C49: C136 | D49: FHARA CONEJA | E49: BERNARDO DARQUEA | P49: 0
B50: 43 | C50: C134 | D50: JUPITER | E50: BERNARDO DARQUEA | P50: 0
B51: 44 | C51: C192 | D51: KALA | E51: BERNARDO DARQUEA | P51: 0
B52: 45 | C52: C094 | D52: MISTERIO | E52: BERNARDO DARQUEA | P52: 0
B53: 46 | C53: C360 | D53: PSICOTICO | E53: BERNARDO DARQUEA | P53: 0
B54: 47 | C54: C154 | D54: SHAKIRA | E54: BERNARDO DARQUEA | P54: 0
B55: 48 | C55: C405 | D55: SOLOANDA | E55: BERNARDO DARQUEA | P55: 0
B56: 49 | C56: C074 | D56: WISKY | E56: BERNARDO DARQUEA | P56: 0
B57: 50 | C57: C389 | D57: SHAKIRA VO | E57: BERNARDO DARQUEA | P57: 0
B58: 51 | P58: 0
B59: 52 | P59: =SUM(F59:O59) -> 0
B60: 53 | P60: 0
B61: 54 | P61: 0
B62: 55 | P62: 0
B63: 56 | P63: 0
M83: =IF(K83>=60,"CLASIFICADO A 60 Km LIBRE y 80 Km NOVICIO",IF(K83>=40,"CLASIFICADO A 40 Km LIBRE y 60 Km NOVICIO","")) -> 

Sheet AMATEUR ABIERTA
B2: PUNTAJE ACUMULADO
B3: CATEGORÍA ABIERTA NOVICIOS
B5: NOVICIOS ABIERTA | E5: PUNTAJES
E6: 2017
C7: CODIGO | D7: JINETE | E7: I CHONE | F7: II CHONE | G7: III CHONE | H7: IV CHONE | I7: V CHONE | J7: VI CHONE | K7: VII CHONE | L7: VIII CHONE | M7: IX CHONE | N7: X CHONE | O7: ACUMULADO
B8: 1 | C8: A236 | D8: JUNE TATE | F8: 63.84 | L8: 57.6 | M8: 123.12 | N8: 115.2 | O8: =SUM(E8:N8) -> 359.76
B9: 2 | C9: A064 | D9: DIEGO CASTILLO | I9: 65.36 | K9: 137.6 | M9: 129.6 | O9: 332.56
B10: 3 | C10: A240 | D10: GONZALEZ XIMENA | H10: 63.22 | I10: 68.8 | N10: 128 | O10: 260.02
B11: 4 | C11: A030 | D11: MONCAYO DANILO | F11: 57.12 | K11: 61.92 | M11: 116.64 | O11: 235.68
B12: 5 | C12: A125 | D12: FALCONI FRANCISCO | F12: 60.48 | G12: 68.8 | O12: 129.28
B13: 6 | C13: A102 | D13: CLARK JUSTIN | G13: 115.488 | O13: 115.488
B14: 7 | C14: A064 | D14: CASTILLO DIEGO | O14: 0
B15: 8 | C15: A001 | D15: VINTIMILLA PAULINO | E15: 64 | O15: 64
B16: 9 | C16: A257 | D16: VINTIMILLA CORDERO PABLO | L16: 64 | O16: 64
B17: 10 | C17: A315 | D17: AGUAYO JUAN PABLO | I17: 61.92 | O17: 61.92
B18: 11 | C18: A093 | D18: GONZALEZ RENATO | L18: 60.8 | O18: 60.8
B19: 12 | C19: A251 | D19: GONZALEZ JERVES XIMENA | J19: 60.8 | O19: 60.8
B20: 13 | O20: =SUM(E20:N20) -> 0
B21: 14 | O21: 0
B22: 15 | C22: A212 | D22: CANGAS GUILLERMO | O22: 0
B23: 16 | C23: A219 | D23: MAHNKE LIESEL | O23: 0
B24: 17 | C24: A220 | D24: TUTIVEN LUIS | O24: 0
B25: 18 | C25: A178 | D25: JUAN CARLOS ANDRADE | O25: 0
B26: 19 | C26: A215 | D26: COELLAR GONZALEZ PEDRO | O26: 0
B27: 20 | C27: A218 | D27: UGALDE LORENA | O27: 0
B28: 21 | C28: A221 | D28: PASQUEL HUGO | O28: 0
B29: 22 | C29: A220 | D29: DUEÑAS GONZALO | O29: 0
B30: 23 | C30: A301 | D30: SIMON PEREZ | O30: 0
B31: 24 | C31: A215 | D31: COELLAR GONZALEZ PEDRO | O31: 0
B32: 25 | C32: A223 | D32: MORENO MILTON GABRIEL | O32: 0
B33: 26 | C33: A218 | D33: TRUEBA VICTORIA | O33: 0
B34: 27 | O34: =SUM(E34:N34) -> 0
B35: 28 | O35: 0
B36: 29 | O36: 0
B37: 30 | O37: 0
B38: 31 | O38: 0
B39: 32 | O39: 0
B40: 33 | O40: 0
B41: 34 | O41: 0
B42: 35 | O42: 0
B43: 36 | O43: 0
B44: 37 | O44: 0
B45: 38 | O45: 0
B46: 39 | O46: 0
B47: 40 | O47: 0
B48: 41 | O48: 0
B49: 42 | O49: 0
B50: 43 | O50: =SUM(E50:N50) -> 0
B51: 44 | O51: =SUM(E51:N51) -> 0
B52: 45 | O52: 0
B53: 46 | O53: 0
B54: 47 | O54: 0
B55: 48 | O55: 0
B56: 49 | O56: 0
B57: 50 | O57: 0
B58: 51 | O58: 0
B59: 52 | O59: 0
B60: 53 | O60: 0
B61: 54 | O61: 0
B62: 55 | O62: 0
B63: 56 | O63: 0
B64: 57 | O64: 0
B65: 58 | O65: 0
B66: 59 | O66: 0
B67: 60 | O67: 0
B68: 61 | O68: 0
B69: 62 | O69: 0
B70: 63 | O70: 0
B71: 64 | O71: 0
B72: 65 | O72: 0
B73: 66 | O73: 0
B74: 67 | O74: 0
L94: =IF(J94>=60,"CLASIFICADO A 60 Km LIBRE y 80 Km NOVICIO",IF(J94>=40,"CLASIFICADO A 40 Km LIBRE y 60 Km NOVICIO","")) -> 

Sheet AMATEUR JUVENIL
B2: PUNTAJE ACUMULADO
B3: CATEGORÍA JUVENIL NOVICIOS
B5: NOVICIOS JUVENIL | E5: PUNTAJES
E6: 2017
C7: CODIGO | D7: JINETE | E7: I CHONE | F7: II CHONE | G7: III CHONE | H7: IV CHONE | I7: V CHONE | J7: VI CHONE | K7: VII CHONE | L7: VIII CHONE | M7: IX CHONE | N7: X CHONE | O7: ACUMULADO
B8: 1 | C8: J114 | D8: MASAPANTA LUIS | G8: 128.32 | M8: 67.2 | O8: =SUM(E8:N8) -> 195.52
B9: 2 | C9: J241 | D9: PEREZ SANDRO | G9: 68.8 | H9: 68.8 | O9: 137.6
B10: 3 | C10: J015 | D10: ANDRES DARQUEA | K10: 68.8 | M10: 60.48 | O10: 129.28
B11: 4 | C11: J222 | D11: CALERO MARIA ISABEL | H11: 65.36 | M11: 57.12 | O11: 122.48
B12: 5 | C12: J040 | D12: DARQUEA GABRIEL | G12: 58.48 | M12: 63.84 | O12: 122.32
B13: 6 | C13: J104 | D13: HERNANDEZ MARIA JOSE | G13: 55.04 | H13: 61.92 | O13: 116.96
B14: 7 | D14: MONTESINOS SANTIAGO | G14: 87.8 | O14: 87.8
B15: 8 | D15: ALVARADO SEBASTIAN | G15: 83.41 | O15: 83.41
B16: 9 | C16: J109 | D16: ALVARADO SEBASTIAN | G16: 83.41 | O16: 83.41
B17: 10 | C17: J048 | D17: CONTRERAS MARIA ALICIA | G17: 79.02 | O17: 79.02
B18: 11 | D18: CARRASCO JUAN SEBASTIAN | G18: 70.24 | O18: 70.24
B19: 12 | C19: M031 | D19: DAVALOS JORGE | G19: 61.92 | O19: 61.92
B20: 13 | O20: =SUM(E20:N20) -> 0
B21: 14 | O21: 0
B22: 15 | C22: J114 | D22: MAZAPANTA KEVIN | O22: 0
B23: 16 | C23: J095 | D23: BERREZUETA PABLO SANTIAGO | O23: 0
B24: 17 | C24: J100 | D24: HURTADO HECTOR | O24: 0
B25: 18 | C25: J021 | D25: CORNEJO MANUEL | O25: 0
B26: 19 | C26: J065 | D26: ESPINOZA BARBARA | O26: 0
B27: 20 | C27: J112 | D27: LEON JUAN | O27: 0
B28: 21 | C28: J201 | D28: PAREDES EDWIN | O28: 0
B29: 22 | C29: J117 | D29: CANDELARIO ARREAGA WAGNER | O29: 0
B30: 23 | O30: =SUM(E30:N30) -> 0
B31: 24 | O31: 0
B32: 25 | O32: 0
B33: 26 | O33: 0
B34: 27 | O34: 0
B35: 28 | O35: 0
B36: 29 | O36: 0
B37: 30 | O37: 0
B38: 31 | O38: 0
B39: 32 | O39: 0
B40: 33 | O40: 0
B41: 34 | O41: 0
B42: 35 | O42: 0
B43: 36 | O43: 0
B44: 37 | O44: 0
B45: 38 | O45: 0
B46: 39 | O46: 0
B47: 40 | O47: 0
B48: 41 | O48: 0
B49: 42 | O49: 0
B50: 43 | O50: 0
B51: 44 | O51: 0
B52: 45 | O52: 0
B53: 46 | O53: 0
B54: 47 | O54: 0
B55: 48 | O55: 0
B56: 49 | O56: 0
B57: 50 | O57: 0
B58: 51 | O58: 0
B59: 52 | O59: 0
B60: 53 | O60: 0
B61: 54 | O61: 0
B62: 55 | O62: 0
B63: 56 | O63: 0
L65: =IF(J65>=60,"CLASIFICADO A 60 Km LIBRE y 80 Km NOVICIO",IF(J65>=40,"CLASIFICADO A 40 Km LIBRE y 60 Km NOVICIO","")) -> 
L83: =IF(J83>=60,"CLASIFICADO A 60 Km LIBRE y 80 Km NOVICIO",IF(J83>=40,"CLASIFICADO A 40 Km LIBRE y 60 Km NOVICIO","")) -> 

Sheet AMATEUR MENORES
B2: PUNTAJE ACUMULADO
B3: CATEGORÍA MENORES NOVICIOS
B5: INFANTIL | E5: PUNTAJES
E6: 2017
C7: CODIGO | D7: JINETE | E7: I CHONE | F7: II CHONE | G7: III CHONE | H7: IV CHONE | I7: V CHONE | J7: VI CHONE | K7: VII CHONE | L7: VIII CHONE | M7: IX CHONE | N7: X CHONE | O7: ACUMULADO
B8: 2 | D8: ANDRADE FELIPE ANDRES | G8: 87.8 | J8: 64 | N8: 80 | O8: =SUM(E8:N8) -> 231.8
B9: 1 | D9: LOPEZ JUAN RAFAEL | G9: 130.4 | O9: =SUM(E9:N9) -> 130.4
B10: 3 | D10: DONOSO JULIAN | G10: 83.41 | O10: =SUM(E10:N10) -> 83.41
B11: 4 | O11: =SUM(E11:N11) -> 0
B12: 5 | O12: 0
B13: 6 | O13: 0
B14: 7 | O14: 0
B15: 8 | O15: 0
B16: 9 | O16: 0
B17: 10 | O17: 0
B18: 11 | O18: 0
B19: 12 | O19: =SUM(E19:N19) -> 0
B20: 13 | O20: 0
B21: 14 | O21: 0
B22: 15 | O22: 0
B23: 16 | O23: 0
B24: 17 | O24: 0
B25: 18 | O25: 0
B26: 19 | O26: 0
B27: 20 | O27: 0
B28: 21 | O28: 0
B29: 22 | O29: 0
B30: 23 | O30: 0
L32: =IF(J32>=60,"CLASIFICADO A 60 Km LIBRE y 80 Km NOVICIO",IF(J32>=40,"CLASIFICADO A 40 Km LIBRE y 60 Km NOVICIO","")) -> 
L50: =IF(J50>=60,"CLASIFICADO A 60 Km LIBRE y 80 Km NOVICIO",IF(J50>=40,"CLASIFICADO A 40 Km LIBRE y 60 Km NOVICIO","")) -> 

Sheet CABALLOS NOVICIOS
B2: PUNTAJE ACUMULADO
B3: CATEGORÍA CABALLOS NOVICIOS
B5: CABALLOS NOVICIOS | F5: PUNTAJES
F6: 2017
C7: CODIGO | D7: CABALLO | E7: DUEÑO/JINETE | F7: I CHONE | G7: II CHONE | H7: III CHONE | I7: IV CHONE | J7: V CHONE | K7: VI CHONE | L7: VII CHONE | M7: VIII CHONE | N7: IX CHONE | O7: X CHONE | P7: ACUMULADO
B8: 1 | C8: C288 | D8: LIA | E8: MAURICIO NOBOA | H8: 126 | L8: 119.7 | N8: 117.8 | P8: =SUM(F8:O8) -> 363.5
B9: 2 | C9: C059 | D9: GS RASHID | E9: DIEGO CASTILLO | J9: 65.36 | L9: 137.6 | N9: 129.6 | P9: 332.56
B10: 3 | C10: C403 | D10: MARAVILLA | E10: HECTOR ALMEIDA AYALA | H10: 68.8 | J10: 68.8 | N10: 123.12 | P10: 260.72
B11: 4 | C11: C514 | D11: BERNARDA | E11: XIMENA GONZALEZ | I11: 63.216 | J11: 65.36 | O11: 128 | P11: 256.576
B12: 5 | C12: C415 | D12: GH ROSCO | E12: PABLO VINTIMILLA | K12: 64 | M12: 64 | O12: 121.6 | P12: 249.6
B13: 6 | C13: C511 | D13: SHAKKIRA VO | E13: FELIPE ANDRADE | I13: 154.85 | O13: 80 | P13: 234.85
B14: 7 | C14: C402 | D14: ABU DABI | E14: VINTIMILLA PABLO | F14: 76 | J14: 115.488 | P14: 191.488
B15: 8 | C15: C372 | D15: SHAKIRA CMB | E15: CESAR MORABOWEN | H15: 61.92 | J15: 65.36 | N15: 57.12 | P15: 184.4
B16: 9 | C16: C436 | D16: TAKARI CSE | E16: GOMEZ ALEXANDER | F16: 134.4 | P16: 134.4
B17: 10 | C17: C512 | D17: SA DREAMSHA | E17: VINTIMILLA PAULINO | F17: 64 | I17: 70.24 | P17: 134.24
B18: 11 | C18: C497 | D18: ABUDABI | E18: PABLO VINTIMILLA | I18: 130.4 | P18: 130.4
B19: 12 | C19: C404 | D19: SALMA | E19: MANUELA JARAMILLO | N19: 129.6 | P19: 129.6
B20: 13 | C20: C241 | D20: ENSUEÑO | E20: FRANCISCO FALCONI | G20: 60.48 | H20: 68.8 | P20: 129.28
B21: 14 | C21: C396 | D21: LATICA BD | E21: BERNARDO DARQUEA | L21: 68.8 | N21: 60.48 | P21: 129.28
B22: 15 | C22: C370 | D22: JEREZ | E22: JOSE LETORT | H22: 128.32 | P22: 128.32
B23: 18 | C23: C217 | D23: GERONIMO | E23: GALO MANCHENO | J23: 128.32 | P23: 128.32
B24: 19 | C24: C278 | D24: JUGUETE | E24: LOYOLA TEODORO ANDRES | M24: 128 | P24: 128
B25: 20 | C25: C420 | D25: JEREZ | E25: JOSE LETORT | F25: 127.68 | P25: 127.68
B26: 21 | C26: C437 | D26: WOODY | E26: CANGAS GUILLERMO | N26: 124 | P26: 124
B27: 22 | C27: C390 | D27: MD ARAMUS | E27: ARMANDO SERRANO | G27: 53.76 | L27: 68.8 | P27: 122.56
B28: 23 | C28: C376 | D28: NABU | J28: 121.904 | P28: 121.904
B29: 24 | C29: C513 | D29: MONTE SAU | E29: TATE JUNE | G29: 63.84 | M29: 57.6 | P29: 121.44
B30: 25 | C30: C389 | D30: MALEIK CSE | E30: JUAN JOSE RECALDE | G30: 57.12 | L30: 58.48 | P30: 115.6
B31: 26 | C31: C441 | D31: SANTOO | E31: MARIA CONSUELO VELEZ MENA | F31: 114 | P31: 114
B32: 27 | C32: C278 | D32: JUGUETE | E32: LOYOLA TEODORO ANDRES | K32: 80 | P32: 80
B33: 28 | C33: C029 | D33: MILONGA | E33: MANUELA JARAMILLO | G33: 67.2 | P33: 67.2
B34: 29 | C34: C151 | D34: ILUSIÓN | E34: JOSÉ LETORT | L34: 65.36 | P34: 65.36
B35: 30 | C35: C532 | D35: HASAN | E35: FELIPE ANDRADE | K35: 64 | P35: 64
B36: 31 | C36: C395 | D36: MATE | E36: JUAN PABLO AGUAYO | J36: 61.92 | P36: 61.92
B37: 32 | C37: C401 | D37: SUMAYA BD | E37: MARIA JOSE HERNANDEZ | J37: 61.92 | P37: 61.92
B38: 33 | C38: C265 | D38: COMETA | E38: GONZALEZ JERVES XIMENA | K38: 60.8 | P38: 60.8
B39: 34 | C39: C265 | D39: COMETA | E39: GONZALEZ RENATO | M39: 60.8 | P39: 60.8
B40: 33 | C40: C402 | D40: KADAFY | E40: BERNARDO DARQUEA | H40: 58.48 | P40: 58.48
B41: 34 | C41: C401 | D41: SUMAYA BD | E41: PEREZ MARIA JOSE | H41: 55.04 | P41: 55.04
B42: 35 | C42: C542 | D42: PV GUAPA | E42: PABLO VINTIMILLA | M42: 54.4 | P42: 54.4
B43: 36 | P43: 0
B44: 37 | P44: =SUM(F44:O44) -> 0
B45: 38 | P45: 0
B46: 39 | P46: =SUM(F46:O46) -> 0
B47: 40 | P47: 0
B48: 41 | C48: C334 | D48: CAPORAL | E48: SALTIVERI MARIA JESUS | P48: 0
B49: 42 | C49: C101 | D49: CARAMELO CMB | E49: DAVALOS JORGE EDUARDO | P49: 0
B50: 43 | C50: C441 | D50: SANTOO | E50: MARIA CONSUELO VELEZ MENA | P50: 0
B51: 44 | C51: C209 | D51: AISHA | E51: MARIA CONSUELO VELEZ MENA | P51: 0
B52: 45 | P52: 0
B53: 46 | C53: C085 | D53: BLACK | E53: BERNARDO DARQUEA | P53: 0
B54: 47 | C54: C414 | D54: GH PSHYRO | E54: LOZADA JOSE ARMANDO | P54: 0
B55: 48 | C55: C243 | D55: PAVITA | E55: JUAN CARLOS ANDRADE | P55: 0
B56: 49 | C56: C217 | D56: GERONIMO | E56: GALO MANCHENO | P56: 0
B57: 50 | C57: C406 | D57: ELECTRIFY VO | E57: ANDRADE JOSE DANIEL | P57: 0
B58: 51 | C58: C438 | D58: MC LUCAS | E58: COELLAR GONZALEZ PEDRO | P58: 0
B59: 52 | C59: C439 | D59: SAN CARLOS | E59: ALLAICO JOSE EMILIO | P59: 0
B60: 53 | C60: C369 | D60: AS ANGUS | E60: ARMANDO SERRANO | P60: 0
B61: 54 | C61: C387 | D61: AGUARDIENTICO | E61: MAURICIO NOBOA | P61: 0
B62: 55 | C62: C427 | D62: FLACA | E62: FELIPE SERRANO | P62: 0
B63: 56 | C63: C081 | D63: SUE LD | E63: ANDRES BARAHONA | P63: 0
B64: 57 | C64: C130 | D64: ESPIRITU DEL ECUADOR | E64: BERREZUETA PABLO SANTIAGO | P64: 0
B65: 58 | C65: C444 | D65: QUINA | E65: UGALDE LORENA | P65: 0
B66: 59 | C66: C443 | D66: ZAHIRA | E66: LOYOLA TEODORO ANDRES | P66: 0
B67: 60 | C67: C416 | D67: CARRUZO | E67: LUIS MAZAPANTA | P67: 0
B68: 61 | C68: C438 | D68: MC JULIA | E68: CESAR MORABOWEN | P68: 0
B69: 62 | C69: C459 | D69: GALAN AMDD | E69: DARQUEA ANA MARIA | P69: 0
B70: 63 | C70: C461 | D70: JULIA CMB | E70: CESAR MORABOWEN | P70: 0
B71: 64 | C71: C462 | D71: SERENA | E71: CANDELARIO ARREAGA WAGNER | P71: 0
B72: 65
B73: 66
B74: 67 | P74: =SUM(F74:N74) -> 0
B75: 68 | P75: 0
B76: 69 | P76: =SUM(F76:N76) -> 0
B77: 70 | P77: 0
B78: 71 | P78: 0
B79: 72 | P79: 0
B80: 73 | P80: 0
B81: 74 | P81: 0
B82: 75 | P82: 0
B83: 76 | P83: 0
B84: 77 | P84: 0
B85: 78 | P85: 0
B86: 79 | P86: 0
B87: 80 | P87: 0
B88: 81 | P88: 0
B89: 82 | P89: 0
B90: 83 | P90: 0
B91: 84 | P91: 0
B92: 85 | P92: 0
B93: 86 | P93: 0
B94: 87 | P94: 0
B95: 88 | P95: 0
B96: 89 | P96: 0
B97: 90 | P97: 0
B98: 91 | P98: 0
B99: 92 | P99: 0
B100: 93 | P100: 0
M120: =IF(K120>=60,"CLASIFICADO A 60 Km LIBRE y 80 Km NOVICIO",IF(K120>=40,"CLASIFICADO A 40 Km LIBRE y 60 Km NOVICIO","")) -> 

Sheet BINOMIOS ABIERTA
B2: PUNTAJE ACUMULADO
B3: CATEGORÍA BINOMIOS ABIERTA
B5: BINOMIOS ABIERTA | G5: PUNTAJES
G6: 2017
C7: CODIGO | D7: JINETE | E7: CODIGO | F7: CABALLO | G7: I CHONE | H7: II CHONE | I7: III CHONE | J7: IV CHONE | K7: V CHONE | L7: VI CHONE | M7: VII CHONE | N7: VIII CHONE | O7: IX CHONE | P7: X CHONE | Q7: ACUMULADO
B8: 1 | C8: A250 | D8: ESTRADA CARLOS | E8: C473 | F8: SC SHADID | G8: 64 | H8: 67.2 | I8: 121.904 | K8: 128.32 | M8: 126 | O8: 162 | Q8: =SUM(I8:P8) -> 538.224
B9: 2 | C9: J055 | D9: LOYOLA CLAUDIA MARIA | E9: C197 | F9: PATACON | G9: 80 | J9: 130.4 | L9: 160.2 | N9: 128 | P9: 80 | Q9: =SUM(J9:P9) -> 498.6
B10: 3 | C10: A059 | D10: ALMEIDA AYALA HECTOR | E10: C115 | F10: AVENTURERO | M10: 163.4 | P10: 240.2 | Q10: =SUM(G10:P10) -> 403.6
B11: 4 | C11: A059 | D11: ALMEIDA AYALA HECTOR | E11: C114 | F11: KAFIR HA | H11: 159.6 | I11: 216.36 | Q11: =SUM(G11:P11) -> 375.96
B12: 5 | C12: A046 | D12: NOBOA MAURICIO | E12: C406 | F12: LIA | I12: 126 | M12: 119.7 | O12: 117.8 | Q12: =SUM(G12:P12) -> 363.5
B13: 6 | C13: A060 | D13: RECALDE JUAN JOSE | E13: C200 | F13: MULATA | H13: 117.8 | I13: 228.38 | Q13: =SUM(G13:P13) -> 346.18
B14: 7 | C14: A171 | D14: VELEZ MENA MARIA CONSUELO | E14: C209 | F14: AISHA | G14: 120 | J14: 87.8 | L14: 128 | Q14: =SUM(G14:P14) -> 335.8
B15: 8 | C15: A064 | D15: DIEGO CASTILLO | E15: C059 | F15: GS RASHID | K15: 65.36 | M15: 137.6 | O15: 129.6 | Q15: =SUM(G15:P15) -> 332.56
B16: 9 | C16: A192 | D16: LOZADA JOSE ARMANDO | E16: C497 | F16: ABUDABI | G16: 76 | J16: 130.4 | K16: 115.488 | Q16: =SUM(G16:P16) -> 321.888
B17: 10 | C17: J011 | D17: LETORT BERNARDA | E17: C046 | F17: AMARETO | H17: 168 | M17: 146.2 | Q17: =SUM(G17:P17) -> 314.2
B18: 11 | C18: A059 | D18: ALMEIDA AYALA HECTOR | E18: C140 | F18: SC SADIQ | G18: 144 | O18: 145.8 | Q18: =SUM(G18:P18) -> 289.8
B19: 12 | C19: A055 | D19: WEEMAELS NATHALIE | E19: C413 | F19: RO EVITA | H19: 124 | M19: 137.6 | Q19: =SUM(G19:P19) -> 261.6
B20: 13 | C20: J055 | D20: LOYOLA CLAUDIA | E20: C407 | F20: MONARCH | I20: 128.32 | K20: 121.904 | Q20: =SUM(G20:P20) -> 250.224
B21: 14 | C21: A033 | D21: ARMANDO SERRANO | E21: C414 | F21: MD YALA | K21: 240.4 | Q21: =SUM(G21:P21) -> 240.4
B22: 15 | C22: A045 | D22: MORABOWEN CESAR | E22: C329 | F22: SERENATA CMB | I22: 240.4 | Q22: =SUM(G22:P22) -> 240.4
B23: 16 | C23: A097 | D23: MALO ANDREA | E23: C441 | F23: SANTOO | G23: 114 | L23: 121.6 | Q23: =SUM(G23:P23) -> 235.6
B24: 17 | C24: A192 | D24: LOZADA JOSE ARMANDO | E24: C415 | F24: GH ROSCO | L24: 64 | P24: 121.6 | Q24: =SUM(G24:P24) -> 185.6
B25: 18 | C25: A030 | D25: DANILO MONCAYO | E25: C398 | F25: AR BOMBOM | M25: 61.92 | O25: 116.64 | Q25: =SUM(G25:P25) -> 178.56
B26: 19 | C26: A033 | D26: ARMANDO SERRANO | E26: C370 | F26: JEREZ | M26: 172 | Q26: =SUM(G26:P26) -> 172
B27: 20 | C27: A201 | D27: ALLAICO JOSE EMILIO | E27: C004 | F27: TEQUILA | J27: 163 | Q27: =SUM(G27:P27) -> 163
B28: 21 | C28: A058 | D28: RIBADENEIRA ARTURO | E28: C096 | F28: AR FAISAN | I28: 160.4 | Q28: =SUM(G28:P28) -> 160.4
B29: 22 | C29: A171 | D29: VELEZ MARIA CONSUELO | E29: C140 | F29: SC SADIQ | K29: 160.4 | Q29: =SUM(G29:P29) -> 160.4
B30: 23 | C30: A249 | D30: ANDRADE JOSE DANIEL | E30: C072 | F30: QUITA PENAS | N30: 160.2 | Q30: =SUM(G30:P30) -> 160.2
B31: 24 | C31: A045 | D31: MORABOWEN CESAR | E31: C229 | F31: BULERIA CMB | G31: 160 | Q31: =SUM(G31:P31) -> 160
B32: 25 | C32: A097 | D32: MALO ANDREA | E32: C511 | F32: SHAKKIRA VO | J32: 154.85 | Q32: =SUM(G32:P32) -> 154.85
B33: 26 | C33: A045 | D33: CESAR MORABOWEN | E33: C382 | F33: BULERIA CBM | M33: 154.8 | Q33: =SUM(G33:P33) -> 154.8
B34: 27 | C34: J034 | D34: JOSÉ DANIEL ANDRADE | E34: C409 | F34: MONARCH | O34: 153.9 | Q34: =SUM(G34:P34) -> 153.9
B35: 28 | C35: A067 | D35: MARIO CANDO | E35: C416 | F35: CARUZO | K35: 152.38 | Q35: =SUM(G35:P35) -> 152.38
B36: 29 | C36: A056 | D36: MORILLO MAURICIO | E36: C411 | F36: MANDY CMB | I36: 152.38 | Q36: =SUM(G36:P36) -> 152.38
B37: 30 | C37: A092 | D37: VINTIMILLA PABLO | E37: C343 | F37: PV RIGUEL | N37: 152.19 | Q37: =SUM(G37:P37) -> 152.19
B38: 31 | C38: A092 | D38: VINTIMILLA PABLO | E38: C252 | F38: BIANCA | G38: 152 | Q38: =SUM(G38:P38) -> 152
B39: 32 | C39: A249 | D39: ANDRADE JOSE DANIEL | E39: C282 | F39: MAGIC MENES | J39: 146.7 | Q39: =SUM(G39:P39) -> 146.7
B40: 33 | C40: A035 | D40: PORTILLA FELIPE | E40: C204 | F40: AR ALBATSYN | K40: 144.36 | Q40: =SUM(G40:P40) -> 144.36
B41: 34 | C41: A055 | D41: WEEMAELS NATHALIE | E41: C093 | F41: CG ALLASKI | N41: 144.18 | Q41: =SUM(G41:P41) -> 144.18
B42: 35 | C42: A302 | D42: MIGUEL MOYA | E42: C357 | F42: ZT SADFANTDU | O42: 137.7 | Q42: =SUM(G42:P42) -> 137.7
B43: 36 | C43: A058 | D43: RIBADENEIRA ARTURO | E43: C415 | F43: ANGOSTURA FRODO | K43: 136.34 | Q43: =SUM(G43:P43) -> 136.34
B44: 37 | C44: A165 | D44: MORABOWEN CESAR | E44: C378 | F44: MANDI CMB | H44: 134.4 | Q44: =SUM(G44:P44) -> 134.4
B45: 38 | C45: A125 | D45: FRANCISCO FALCONI | E45: C241 | F45: ENSUEÑO | H45: 60.48 | I45: 68.8 | Q45: =SUM(G45:P45) -> 129.28
B46: 39 | C46: A318 | D46: GONZALEZ XIMENA | E46: C419 | F46: BERNARDA | J46: 63.216 | K46: 65.36 | Q46: =SUM(G46:P46) -> 128.576
B47: 40 | C47: A179 | D47: PAMELA MANCHENO | E47: C217 | F47: GERONIMO | K47: 128.32 | Q47: =SUM(G47:P47) -> 128.32
B48: 41 | C48: A026 | D48: JOSE LETORT | E48: C370 | F48: JEREZ | H48: 127.68 | Q48: =SUM(G48:P48) -> 127.68
B49: 42 | C49: A303 | D49: DAVIS JACQUELINE | E49: C098 | F49: BOM BON | K49: 126 | Q49: =SUM(G49:P49) -> 126
B50: 43 | C50: A311 | D50: GUILLERMO CANGAS | E50: C384 | F50: WOODY | O50: 124 | Q50: =SUM(G50:P50) -> 124
B51: 44 | C51: A236 | D51: JUNE TATE | E51: C406 | F51: MARAVILLA | O51: 123.12 | Q51: =SUM(G51:P51) -> 123.12
B52: 45 | C52: A102 | D52: CLARK JUSTIN | E52: C282 | F52: MAGIC MENES | I52: 115.488 | Q52: =SUM(G52:P52) -> 115.488
B53: 46 | C53: A059 | D53: ALMEIDA AYALA HECTOR | E53: C097 | F53: CENTAURO | J53: 83.41 | Q53: =SUM(G53:P53) -> 83.41
B54: 47 | C54: A171 | D54: VELEZ MENA MARIA CONSUELO | E54: C441 | F54: SANTOO | N54: 80 | Q54: =SUM(G54:P54) -> 80
B55: 48 | C55: A057 | D55: DAVILA JUAN DIEGO | E55: C498 | F55: DREAMSHA | J55: 70.24 | Q55: =SUM(G55:P55) -> 70.24
B56: 49 | C56: A064 | D56: CASTILLO DIEGO | E56: C059 | F56: GS RASHID | K56: 68.8 | Q56: =SUM(G56:P56) -> 68.8
B57: 50 | C57: A067 | D57: MARIO CANDO | E57: C390 | F57: MD ARAMUS | M57: 68.8 | Q57: =SUM(G57:P57) -> 68.8
B58: 51 | C58: A200 | D58: MALO DIANA | E58: C234 | F58: EL PADRINO | J58: 66.728 | Q58: =SUM(G58:P58) -> 66.728
B59: 52 | C59: A026 | D59: JOSÉ LETORT | E59: C151 | F59: ILUSIÓN | M59: 65.36 | Q59: =SUM(G59:P59) -> 65.36
B60: 53 | C60: A001 | D60: VINTIMILLA PAULINO | E60: C512 | F60: SA DREAMSHA | G60: 64 | Q60: =SUM(G60:P60) -> 64
B61: 54 | C61: A257 | D61: VINTIMILLA CORDERO PABLO | E61: C415 | F61: GH ROSCO | N61: 64 | Q61: =SUM(G61:P61) -> 64
B62: 55 | C62: A236 | D62: TATE JUNE | E62: C388 | F62: MONTE SAU | H62: 63.84 | Q62: =SUM(G62:P62) -> 63.84
B63: 56 | C63: A315 | D63: AGUAYO JUAN PABLO | E63: C395 | F63: MATE | K63: 61.92 | Q63: =SUM(G63:P63) -> 61.92
B64: 57 | C64: A030 | D64: DANILO MONCAYO | E64: C398 | F64: AR BOMBON | M64: 61.92 | Q64: =SUM(G64:P64) -> 61.92
B65: 58 | C65: A251 | D65: GONZALEZ JERVES XIMENA | E65: C265 | F65: COMETA | L65: 60.8 | Q65: =SUM(G65:P65) -> 60.8
B66: 59 | C66: A093 | D66: GONZALEZ RENATO | E66: C265 | F66: COMETA | N66: 60.8 | Q66: =SUM(G66:P66) -> 60.8
B67: 60 | C67: A060 | D67: JUAN JOSE RECALDE | E67: C389 | F67: MALEIK CSE | M67: 58.48 | Q67: =SUM(G67:P67) -> 58.48
B68: 61 | C68: A242 | D68: TATE JUNE | E68: C513 | F68: MONTE SAU | N68: 57.6 | Q68: =SUM(G68:P68) -> 57.6
B69: 62 | C69: A030 | D69: MONCAYO DANILO | E69: C389 | F69: MALEIK CSE | H69: 57.12 | Q69: =SUM(G69:P69) -> 57.12
B70: 63 | C70: A192 | D70: LOZADA JOSE ARMANDO | E70: C542 | F70: PV GUAPA | N70: 54.4 | Q70: =SUM(G70:P70) -> 54.4
B71: 64 | C71: A067 | D71: CANDO MARIO | E71: C390 | F71: MD ARAMUS | H71: 53.76 | Q71: =SUM(G71:P71) -> 53.76
B72: 65 | Q72: =SUM(G72:P72) -> 0
B73: 66 | Q73: =SUM(G73:P73) -> 0
B74: 67 | Q74: 0
B75: 68 | Q75: 0
B76: 69 | Q76: 0
B77: 70 | Q77: 0
B78: 71 | Q78: 0
B79: 72 | Q79: 0
B80: 73 | Q80: 0
B81: 74 | Q81: 0
B82: 75 | Q82: 0
B83: 76 | Q83: 0
B84: 77 | Q84: 0
B85: 78 | Q85: 0
B86: 79 | Q86: 0
B87: 80 | Q87: 0
B88: 81 | Q88: 0
B89: 82 | Q89: 0
B90: 83 | Q90: 0
B91: 84 | Q91: 0
B92: 85 | Q92: 0
B93: 86 | Q93: 0
B94: 87 | Q94: 0
B95: 88 | Q95: 0
B96: 89 | Q96: 0
B97: 90 | Q97: 0
B98: 91 | Q98: 0
B99: 92 | Q99: 0
B100: 93 | Q100: 0
B101: 94 | Q101: 0
B102: 95 | Q102: 0
B103: 96 | Q103: 0
B104: 97 | Q104: 0
B105: 98 | Q105: =SUM(G105:P105) -> 0
B106: 99 | Q106: 0
B107: 100 | Q107: 0
B108: 101 | Q108: 0
B109: 102 | Q109: 0
B110: 103 | Q110: 0
B111: 104 | Q111: 0
B112: 105 | Q112: 0
B113: 106 | Q113: 0
B114: 107 | Q114: 0
B115: 108 | Q115: 0
B116: 109 | Q116: 0
B117: 110 | Q117: =SUM(G117:P117) -> 0
B118: 111 | Q118: 0
B119: 112 | Q119: 0
B120: 113 | Q120: 0
B121: 114 | Q121: 0
B122: 115 | Q122: 0
B123: 116 | Q123: 0
B124: 117 | Q124: 0
B125: 118 | Q125: 0
B126: 119 | Q126: 0
B127: 120 | Q127: 0
B128: 121 | Q128: 0
B129: 122 | Q129: 0
B130: 123 | Q130: 0
B131: 124 | Q131: 0
B132: 125 | Q132: 0
B133: 126 | Q133: 0
B134: 127 | Q134: 0
B135: 128 | Q135: 0
B136: 129 | Q136: 0
B137: 130 | Q137: =SUM(G137:P137) -> 0
B138: 131 | Q138: 0
B139: 132 | Q139: 0
B140: 133 | Q140: 0
B141: 134 | Q141: 0
B142: 135 | Q142: 0
B143: 136 | Q143: 0
B144: 137 | Q144: 0
B145: 138 | Q145: 0
N165: =IF(L165>=60,"CLASIFICADO A 60 Km LIBRE y 80 Km NOVICIO",IF(L165>=40,"CLASIFICADO A 40 Km LIBRE y 60 Km NOVICIO","")) -> 

Sheet BINOMIOS LIVIANOS
B2: PUNTAJE ACUMULADO
B3: CATEGORÍA BINOMIOS LIVIANOS
B5: BINOMIOS LIVIANOS | G5: PUNTAJES
G6: 2017
C7: CODIGO | D7: JINETE | E7: CODIGO | F7: CABALLO | G7: I CHONE | H7: II CHONE | I7: III CHONE | J7: IV CHONE | K7: V CHONE | L7: VI CHONE | M7: VII CHONE | N7: VIII CHONE | O7: IX CHONE | P7: X CHONE | Q7: ACUMULADO
B8: 1 | C8: J063 | D8: GONZALEZ BERNARDA | E8: C232 | F8: ASRAEL | J8: 163 | N8: 160.2 | P8: 240.2 | Q8: =SUM(G8:P8) -> 563.4
B9: 2 | C9: M047 | D9: MORABOWEN MOSQUERA CESAR | E9: C238 | F9: CALEÑA CMB | H9: 168 | I9: 160.4 | O9: 57.12 | P9: 160 | Q9: 545.52
B10: 3 | C10: J109 | D10: RICARDO DARQUEA | E10: C376 | F10: NABU | K10: 121.904 | O10: 162 | Q10: 283.904
B11: 4 | C11: J063 | D11: GONZALES BERNARDA | E11: C412 | F11: POLACO | I11: 240.4 | Q11: 240.4
B12: 5 | C12: M014 | D12: MANUELA JARAMILLO | E12: C046 | F12: AMARETO | I12: 228.38 | Q12: 228.38
B13: 6 | C13: I004 | D13: MANUELA JARAMILLO | E13: C394 | F13: CARRUZO | M13: 172 | Q13: 172
B14: 7 | C14: J063 | D14: GONZALEZ BERNARDA | E14: C333 | F14: KADIN | L14: 160.2 | Q14: 160.2
B15: 8 | C15: J217 | D15: PEREZ SANDRO | E15: C403 | F15: MARAVILLA | I15: 68.8 | K15: 68.8 | Q15: 137.6
B16: 9 | C16: J008 | D16: GOMEZ ALEXANDER | E16: C436 | F16: TAKARI CSE | H16: 134.4 | Q16: 134.4
B17: 10 | C17: J015 | D17: ANDRES DARQUEA | E17: C396 | F17: LATICA BD | M17: 68.8 | O17: 63.84 | Q17: 132.64
B18: 11 | C18: M014 | D18: MANUELA JARAMILLO | E18: C407 | F18: SALMA | O18: 129.6 | Q18: 129.6
B19: 12 | C19: J101 | D19: MASAPANTA LUIS | E19: C370 | F19: JEREZ | I19: 128.32 | Q19: 128.32
B20: 13 | C20: A240 | D20: GONZALEZ XIMENA | E20: C514 | F20: BERNARDA | P20: 128 | Q20: 128
B21: 14 | C21: A242 | D21: TATE JUNE | E21: C114 | F21: KAFIR HA | P21: 115.2 | Q21: 115.2
B22: 15 | C22: J096 | D22: LOYOLA TEODORO ANDRES | E22: C278 | F22: JUGUETE | L22: 80 | Q22: 80
B23: 16 | C23: M070 | D23: ANDRADE FELIPE ANDRES | E23: C154 | F23: SHAKIRA | P23: 80 | Q23: 80
B24: 17 | C24: J079 | D24: JARAMILLO MANUELA | E24: C029 | F24: MILONGA | H24: 67.2 | Q24: 67.2
B25: 18 | C25: J019 | D25: DARQUEA RICARDO | E25: C143 | F25: ALI | I25: 65.36 | Q25: 65.36
B26: 19 | C26: J222 | D26: MARÍA ISABEL CALERO | E26: C154 | F26: SHAKIRA CMB | K26: 65.36 | Q26: 65.36
B27: 20 | C27: M070 | D27: ANDRADE FELIPE ANDRES | E27: C532 | F27: HASAN | L27: 64 | Q27: 64
B28: 21 | C28: M022 | D28: DAVALOS JORGE EDUARDO | E28: C372 | F28: SHAKIRA CMB | I28: 61.92 | Q28: 61.92
B29: 22 | C29: J104 | D29: MARIA JOSE HERNANDEZ | E29: C401 | F29: SUMAYA BD | K29: 61.92 | Q29: 61.92
B30: 23 | C30: J201 | D30: MARÍA ISABEL CALERO | E30: C372 | F30: SHAKIRA CMB | O30: 60.48 | Q30: 60.48
B31: 24 | C31: J040 | D31: DARQUEA GABRIEL | E31: C402 | F31: KADAFY | I31: 58.48 | Q31: 58.48
B32: 25 | C32: J104 | D32: PEREZ MARIA JOSE | E32: C401 | F32: SUMAYA BD | I32: 55.04 | Q32: 55.04
B33: 26 | Q33: =SUM(G33:P33) -> 0
B34: 27 | Q34: 0
B35: 28 | Q35: 0
B36: 29 | Q36: 0
B37: 30 | Q37: 0
B38: 31 | Q38: 0
B39: 32 | Q39: 0
B40: 33 | Q40: 0
B41: 34 | Q41: 0
B42: 35 | Q42: 0
B43: 36 | Q43: 0
B44: 37 | Q44: 0
B45: 38 | Q45: 0
B46: 39 | Q46: 0
B47: 40 | Q47: 0
B48: 41 | Q48: 0
B49: 42 | Q49: 0
B50: 43 | Q50: 0
B51: 44 | Q51: 0
B52: 45 | Q52: 0
B53: 46 | Q53: =SUM(G53:P53) -> 0
B54: 47 | Q54: 0
B55: 48 | Q55: 0
B56: 49 | Q56: 0
B57: 50 | Q57: 0
B58: 51 | Q58: 0
B59: 52 | Q59: 0
B60: 53 | Q60: 0
B61: 54 | Q61: 0
B62: 55 | Q62: 0
B63: 56 | Q63: 0
B64: 57 | Q64: 0
B65: 58 | Q65: 0
B66: 59 | Q66: 0
B67: 60 | Q67: 0
B68: 61 | Q68: 0
B69: 62 | Q69: 0
B70: 63 | Q70: 0
B71: 64 | Q71: =SUM(G71:P71) -> 0
B72: 65 | Q72: 0
B73: 66 | Q73: 0
B74: 67 | Q74: 0
B75: 68 | Q75: 0
B76: 69 | Q76: 0
B77: 70 | Q77: 0
B78: 71 | Q78: 0
B79: 72 | Q79: 0
B80: 73 | Q80: 0
B81: 74 | Q81: 0
B82: 75 | Q82: 0
B83: 76 | Q83: 0
B84: 77 | Q84: 0
B85: 78 | Q85: 0
B86: 79 | Q86: 0
B87: 80 | Q87: 0
B88: 81 | Q88: 0
B89: 82 | Q89: 0
B90: 83 | Q90: 0
B91: 84 | Q91: 0
B92: 85 | Q92: 0
B93: 86 | Q93: 0
B94: 87 | Q94: 0
B95: 88 | Q95: 0
B96: 89 | Q96: 0
B97: 90 | Q97: 0
B98: 91 | Q98: 0
B99: 92 | Q99: 0
B100: 93 | Q100: 0
B101: 94 | Q101: 0
B102: 95 | Q102: 0
B103: 96 | Q103: 0
B104: 97 | Q104: 0
B105: 98 | Q105: 0
B106: 99 | Q106: 0
B107: 100 | Q107: 0
B108: 101 | Q108: 0
B109: 102 | Q109: 0
B110: 103 | Q110: 0
B111: 104 | Q111: 0
B112: 105 | Q112: 0
B113: 106 | Q113: 0
B114: 107 | Q114: 0
B115: 108 | Q115: 0
B116: 109 | Q116: 0
B117: 110 | Q117: 0
B118: 111 | Q118: 0
B119: 112 | Q119: 0
B120: 113 | Q120: 0
B121: 114 | Q121: 0
B122: 115 | Q122: 0
B123: 116 | Q123: 0
B124: 117 | Q124: 0
B125: 118 | Q125: 0
B126: 119 | Q126: 0
B127: 120 | Q127: 0
B128: 121 | Q128: 0
B129: 122 | Q129: 0
B130: 123 | Q130: 0
B131: 124 | Q131: 0
B132: 125 | Q132: 0
B133: 126 | Q133: 0
B134: 127 | Q134: 0
B135: 128 | Q135: =SUM(G135:P135) -> 0
B136: 129 | Q136: 0
B137: 130 | Q137: 0
B138: 131 | Q138: 0
B139: 132 | Q139: 0
B140: 133 | Q140: 0
B141: 134 | Q141: 0
B142: 135 | Q142: 0
B143: 136 | Q143: 0
B144: 137 | Q144: 0
B145: 138 | Q145: 0
N165: =IF(L165>=60,"CLASIFICADO A 60 Km LIBRE y 80 Km NOVICIO",IF(L165>=40,"CLASIFICADO A 40 Km LIBRE y 60 Km NOVICIO","")) -> 

Sheet PR MASTER (hidden)
B2: PUNTAJE ACUMULADO
B3: CATEGORÍA PROMOCIONAL ABIERTA
B5: PROMOCIONAL MASTER | E5: PUNTAJES
E6: 2016
C7: CODIGO | D7: JINETE | E7: I CHONE | F7: II CHONE | G7: III CHONE | H7: IV CHONE | I7: V CHONE | J7: VI CHONE | K7: VII CHONE | L7: VIII CHONE | M7: IX CHONE | N7: X CHONE | O7: ACUMULADO
B8: 1 | O8: =SUM(E8:N8) -> 0
B9: 2 | O9: 0
B10: 3 | O10: 0
B11: 4 | O11: 0
B12: 5 | O12: 0
B13: 6 | O13: 0
B14: 7 | O14: 0
B15: 8 | O15: 0
B16: 9 | O16: 0
B17: 10 | O17: 0
B18: 11 | O18: 0
B19: 12 | O19: 0
B20: 13 | O20: 0
B21: 14 | O21: 0
B22: 15 | O22: =SUM(E22:N22) -> 0
B23: 16 | O23: 0
B24: 17 | O24: 0
B25: 18 | O25: 0
B26: 19 | O26: 0
B27: 20 | O27: 0
B28: 21 | O28: 0
B29: 22 | O29: 0
B30: 23 | O30: 0
B31: 24 | O31: 0
B32: 25 | O32: 0
B33: 26 | O33: 0
B34: 27 | O34: 0
B35: 28 | O35: 0
L37: =IF(J37>=60,"CLASIFICADO A 60 Km LIBRE y 80 Km NOVICIO",IF(J37>=40,"CLASIFICADO A 40 Km LIBRE y 60 Km NOVICIO","")) -> 
L55: =IF(J55>=60,"CLASIFICADO A 60 Km LIBRE y 80 Km NOVICIO",IF(J55>=40,"CLASIFICADO A 40 Km LIBRE y 60 Km NOVICIO","")) -> 

Sheet PR ABIERTA
B2: PUNTAJE ACUMULADO
B3: CATEGORÍA PROMOCIONAL ABIERTA
B5: PROMOCIONAL ABIERTA | E5: PUNTAJES
E6: 2017
C7: CODIGO | D7: JINETE | E7: I CHONE | F7: II CHONE | G7: III CHONE | H7: IV CHONE | I7: V CHONE | J7: VI CHONE | K7: VII CHONE | L7: VIII CHONE | M7: IX CHONE | N7: X CHONE | O7: ACUMULADO
B8: 1 | C8: A197 | D8: CORO RODRIGO | G8: 65.36 | I8: 68.8 | K8: 61.92 | O8: =SUM(E8:N8) -> 196.08
B9: 2 | C9: A313 | D9: MONCAYO FERNANDO | G9: 61.92 | K9: 51.6 | O9: 113.52
B10: 3 | C10: A316 | D10: CONTRERAS JONATHAN | F10: 32 | I10: 65.36 | O10: 97.36
B11: 4 | C11: M020 | D11: TORRES JHONATHAN | F11: 28.8 | K11: 65.36 | O11: 94.16
B12: 5 | C12: A010 | D12: HIDALGO GUSTAVO | G12: 68.8 | O12: 68.8
B13: 6 | C13: A011 | D13: DAVID ALMEIDA | K13: 68.8 | O13: 68.8
B14: 7 | C14: A307 | D14: LOYOLA LEONARDO | F14: 67.2 | O14: 67.2
B15: 8 | C15: A021 | D15: JUAN CARLOS ALVEAR | M15: 67.2 | O15: 67.2
B16: 9 | C16: I019 | D16: CASTILLO DAFNE | F16: 63.84 | O16: 63.84
B17: 10 | C17: A309 | D17: MARÍA JOSÉ HERNANDEZ | M17: 63.84 | O17: 63.84
B18: 11 | C18: A325 | D18: ALEXANDRA TABARES | I18: 61.92 | O18: 61.92
B19: 12 | C19: A313 | D19: JUAN PABLO AGUAYO | M19: 60.48 | O19: 60.48
B20: 13 | C20: J205 | D20: FRANCISCO TAMAYO | K20: 58.48 | O20: 58.48
B21: 14 | C21: J202 | D21: KLARIZA MENDOZA | K21: 55.04 | O21: 55.04
B22: 15 | C22: I019 | D22: DAFNE CASTILLO | K22: 48.16 | O22: 48.16
B23: 16 | C23: A308 | D23: ROSAS MARIO | F23: 32 | O23: 32
B24: 17 | C24: J206 | D24: DAVID DÁVILA | K24: 32 | O24: 32
B25: 18 | C25: A315 | D25: LUIS RUBIO | M25: 32 | O25: 32
B26: 19 | C26: M040 | D26: TAMAYO ISRAEL | F26: 30.4 | O26: 30.4
B27: 20 | C27: J204 | D27: JAIME GALIANO | K27: 30.4 | O27: 30.4
B28: 21 | C28: A321 | D28: JULIAN FLORES | M28: 30.4 | O28: 30.4
B29: 22 | C29: J204 | D29: JAIME GALIANO | M29: 28.8 | O29: 28.8
B30: 23 | C30: A315 | D30: AGUAYO JUAN PABLO | F30: 27.2 | O30: 27.2
B31: 24 | C31: J211 | D31: DIEGO ZURITA | M31: 27.2 | O31: 27.2
B32: 25 | C32: M042 | D32: AGUAYO RAFAELA | F32: 25.6 | O32: 25.6
B33: 26 | C33: J210 | D33: SERGIO JIMENEZ | M33: 25.6 | O33: 25.6
B34: 27 | C34: A314 | D34: IMBAQUINGO CARLOS | F34: 24 | O34: 24
B35: 28 | C35: A320 | D35: CAMILA VERA | M35: 24 | O35: 24
B36: 29 | C36: A318 | D36: MARÍA JOSÉ SÁNCHEZ | M36: 22.4 | O36: 22.4
B37: 30 | C37: A319 | D37: JOSÉ FRANCISCO ORTIZ | M37: 20.8 | O37: 20.8
B38: 31 | O38: =SUM(E38:N38) -> 0
L40: =IF(J40>=60,"CLASIFICADO A 60 Km LIBRE y 80 Km NOVICIO",IF(J40>=40,"CLASIFICADO A 40 Km LIBRE y 60 Km NOVICIO","")) -> 
L58: =IF(J58>=60,"CLASIFICADO A 60 Km LIBRE y 80 Km NOVICIO",IF(J58>=40,"CLASIFICADO A 40 Km LIBRE y 60 Km NOVICIO","")) -> 

Sheet PR JUVENIL (hidden)
B2: PUNTAJE ACUMULADO
B3: CATEGORÍA PROMOCIONAL JUVENIL
B5: PROMOCIONAL JUVENIL | E5: PUNTAJES
E6: 2016
C7: CODIGO | D7: JINETE | E7: I CHONE | F7: II CHONE | G7: III CHONE | H7: IV CHONE | I7: V CHONE | J7: VI CHONE | K7: VII CHONE | L7: VIII CHONE | M7: IX CHONE | N7: X CHONE | O7: ACUMULADO
B8: 1 | C8: J105 | D8: NOROÑA JORDAN | M8: 68.8 | O8: =SUM(E8:N8) -> 68.8
B9: 2 | C9: J040 | D9: GABRIEL DARQUEA | N9: 68.8 | O9: 68.8
B10: 3 | C10: J116 | D10: BARBARA ESPINOZA | N10: 65.36 | O10: 65.36
B11: 4 | C11: J115 | D11: JHON CANDELEJO | N11: 32 | O11: 32
B12: 5 | O12: 0
B13: 6 | O13: 0
B14: 7 | O14: 0
B15: 8 | O15: 0
B16: 9 | O16: 0
B17: 10 | O17: 0
B18: 11 | O18: 0
B19: 12 | O19: 0
B20: 13 | O20: =SUM(E20:N20) -> 0
B21: 14 | O21: 0
B22: 15 | O22: 0
B23: 16 | O23: 0
B24: 17 | O24: 0
B25: 18 | O25: 0
B26: 19 | O26: 0
B27: 20 | O27: 0
B28: 21 | O28: 0
B29: 22 | O29: 0
B30: 23 | O30: 0
L32: =IF(J32>=60,"CLASIFICADO A 60 Km LIBRE y 80 Km NOVICIO",IF(J32>=40,"CLASIFICADO A 40 Km LIBRE y 60 Km NOVICIO","")) -> 
L50: =IF(J50>=60,"CLASIFICADO A 60 Km LIBRE y 80 Km NOVICIO",IF(J50>=40,"CLASIFICADO A 40 Km LIBRE y 60 Km NOVICIO","")) -> 

Sheet PR MENORES (hidden)
B2: PUNTAJE ACUMULADO
B3: CATEGORÍA PROMOCIONAL MENORES
B5: PROMOCIONAL MENORES | E5: PUNTAJES
E6: 2016
C7: CODIGO | D7: JINETE | E7: I CHONE | F7: II CHONE | G7: III CHONE | H7: IV CHONE | I7: V CHONE | J7: VI CHONE | K7: VII CHONE | L7: VIII CHONE | M7: IX CHONE | N7: X CHONE | O7: ACUMULADO
B8: 1 | C8: M028 | D8: CORREA JUAN MARTIN | M8: 28.8 | N8: 32 | O8: =SUM(E8:N8) -> 60.8
B9: 2 | C9: M031 | D9: ESPINOZA NATALIA | I9: 58.176 | O9: =SUM(E9:N9) -> 58.176
B10: 3 | C10: I019 | D10: CASTILLO DAFNE | M10: 32 | O10: =SUM(E10:N10) -> 32
B11: 4 | C11: I044 | D11: MOYA MILENA | M11: 30.4 | O11: =SUM(E11:N11) -> 30.4
B12: 5 | O12: =SUM(E12:N12) -> 0
B13: 6 | O13: 0
B14: 7 | O14: 0
B15: 8 | O15: 0
B16: 9 | O16: 0
B17: 10 | O17: 0
B18: 11 | O18: 0
B19: 12 | O19: 0
B20: 13 | O20: 0
B21: 14 | O21: 0
B22: 15 | O22: 0
B23: 16 | O23: 0
B24: 17 | O24: 0
B25: 18 | O25: 0
B26: 19 | O26: 0
B27: 20 | O27: 0
B28: 21 | O28: 0
B29: 22 | O29: 0
B30: 23 | O30: 0
L32: =IF(J32>=60,"CLASIFICADO A 60 Km LIBRE y 80 Km NOVICIO",IF(J32>=40,"CLASIFICADO A 40 Km LIBRE y 60 Km NOVICIO","")) -> 
L50: =IF(J50>=60,"CLASIFICADO A 60 Km LIBRE y 80 Km NOVICIO",IF(J50>=40,"CLASIFICADO A 40 Km LIBRE y 60 Km NOVICIO","")) -> 

Sheet PR INFANTIL
B2: PUNTAJE ACUMULADO
B3: CATEGORÍA PROMOCIONAL INFANTIL
B5: PROMOCIONAL INFANTIL | E5: PUNTAJES
E6: 2017
C7: CODIGO | D7: JINETE | E7: I CHONE | F7: II CHONE | G7: III CHONE | H7: IV CHONE | I7: V CHONE | J7: VI CHONE | K7: VII CHONE | L7: VIII CHONE | M7: IX CHONE | N7: X CHONE | O7: ACUMULADO
B8: 1 | C8: I038 | D8: DARQUEA EMILIO | F8: 32 | I8: 32 | M8: 67.2 | O8: =SUM(E8:N8) -> 131.2
B9: 2 | C9: I044 | D9: MOYA MARTINA | F9: 67.2 | O9: =SUM(E9:N9) -> 67.2
B10: 3 | C10: I050 | D10: JULIAN NOBOA | K10: 32 | M10: 32 | O10: =SUM(E10:N10) -> 64
B11: 4 | O11: =SUM(E11:N11) -> 0
B12: 5 | O12: =SUM(E12:N12) -> 0
B13: 6 | O13: 0
B14: 7 | O14: 0
B15: 8 | O15: 0
B16: 9 | O16: 0
B17: 10 | O17: 0
B18: 11 | O18: 0
B19: 12 | O19: 0
B20: 13 | O20: 0
B21: 14 | O21: 0
B22: 15 | O22: 0
B23: 16 | O23: 0
B24: 17 | O24: 0
B25: 18 | O25: 0
B26: 19 | O26: 0
B27: 20 | O27: 0
B28: 21 | O28: 0
B29: 22 | O29: 0
B30: 23 | O30: 0
L32: =IF(J32>=60,"CLASIFICADO A 60 Km LIBRE y 80 Km NOVICIO",IF(J32>=40,"CLASIFICADO A 40 Km LIBRE y 60 Km NOVICIO","")) -> 
L50: =IF(J50>=60,"CLASIFICADO A 60 Km LIBRE y 80 Km NOVICIO",IF(J50>=40,"CLASIFICADO A 40 Km LIBRE y 60 Km NOVICIO","")) -> 

Sheet PR ADULTO-MENOR (hidden)
B2: PUNTAJE ACUMULADO
B3: CATEGORÍA PROMOCIONAL ADULTO/MENOR
B5: BINOMIOS ABIERTA | E5: PUNTAJES
E6: 2016
C7: MENOR | D7: ADULTOS | E7: I CHONE | F7: II CHONE | G7: III CHONE | H7: IV CHONE | I7: V CHONE | J7: VI CHONE | K7: VII CHONE | L7: VIII CHONE | M7: IX CHONE | N7: X CHONE | O7: ACUMULADO
B8: 1 | C8: CASTILLO DAFNE | O8: 64.64
B9: 2 | C9: SERRANO OLIVIA | E9: 32.48 | I9: 30.704 | O9: =SUM(E9:N9) -> 63.184
B10: 3 | C10: JARA RAFAELA | I10: 32.32 | O10: 32.32
B11: 4 | C11: MOYA MARTINA | N11: 32 | O11: 32
B12: 5 | C12: CORREA DAVID | E12: 29.232 | O12: 29.232
B13: 6 | C13: DARQUEA EMILIO | I13: 29.088 | O13: 29.088
B14: 7 | C14: DIAZ DAIRA | E14: 27.608 | O14: 27.608
B15: 8 | C15: MOYA MILENA | E15: 21.112 | O15: 21.112
B16: 9 | O16: =SUM(E16:N16) -> 0
B17: 10 | O17: 0
B18: 11 | O18: 0
B19: 12 | O19: 0
B20: 13 | O20: 0
B21: 14 | O21: 0
B22: 15 | O22: 0
B23: 16 | O23: 0
B24: 17 | O24: 0
B25: 18 | O25: 0
B26: 19 | O26: 0
B27: 20 | O27: 0
B28: 21 | O28: 0
B29: 22 | O29: 0
B30: 23 | O30: 0
B31: 24 | O31: 0
B32: 25 | O32: 0
B33: 26 | O33: 0
B34: 27 | O34: 0
B35: 28 | O35: 0
B36: 29 | O36: 0
B37: 30 | O37: 0
B38: 31 | O38: 0
B39: 32 | O39: 0
B40: 33 | O40: 0
B41: 34 | O41: 0
B42: 35 | O42: 0
B43: 36 | O43: 0
B44: 37 | O44: 0
B45: 38 | O45: 0
B46: 39 | O46: 0
B47: 40 | O47: 0
B48: 41 | O48: 0
B49: 42 | O49: 0
B50: 43 | O50: 0
B51: 44 | O51: 0
B52: 45 | O52: 0
B53: 46 | O53: 0
B54: 47 | O54: 0
B55: 48 | O55: 0
B56: 49 | O56: 0
B57: 50 | O57: 0
B58: 51 | O58: 0
B59: 52 | O59: 0
B60: 53 | O60: 0
B61: 54 | O61: 0
B62: 55 | O62: 0
B63: 56 | O63: 0
B64: 57 | O64: 0
B65: 58 | O65: 0
B66: 59 | O66: =SUM(E66:N66) -> 0
B67: 60 | O67: 0
B68: 61 | O68: 0
B69: 62 | O69: 0
B70: 63 | O70: 0
B71: 64 | O71: 0
B72: 65 | O72: 0
B73: 66 | O73: 0
B74: 67 | O74: =SUM(E74:N74) -> 0
B75: 68 | O75: 0
B76: 69 | O76: 0
B77: 70 | O77: 0
B78: 71 | O78: 0
B79: 72 | O79: 0
B80: 73 | O80: 0
B81: 74 | O81: 0
B82: 75 | O82: 0
B83: 76 | O83: 0
B84: 77 | O84: 0
B85: 78 | O85: 0
B86: 79 | O86: 0
B87: 80 | O87: 0
B88: 81 | O88: 0
B89: 82 | O89: 0
B90: 83 | O90: 0
B91: 84 | O91: 0
B92: 85 | O92: 0
B93: 86 | O93: 0
B94: 87 | O94: 0
B95: 88 | O95: 0
B96: 89 | O96: 0
B97: 90 | O97: 0
B98: 91 | O98: 0
B99: 92 | O99: 0
B100: 93 | O100: 0
B101: 94 | O101: 0
B102: 95 | O102: 0
B103: 96 | O103: 0
B104: 97 | O104: 0
B105: 98 | O105: 0
B106: 99 | O106: 0
B107: 100 | O107: 0
B108: 101 | O108: 0
B109: 102 | O109: 0
B110: 103 | O110: 0
B111: 104 | O111: 0
B112: 105 | O112: 0
B113: 106 | O113: 0
B114: 107 | O114: 0
B115: 108 | O115: 0
B116: 109 | O116: 0
B117: 110 | O117: 0
B118: 111 | O118: 0
B119: 112 | O119: 0
B120: 113 | O120: 0
B121: 114 | O121: 0
B122: 115 | O122: 0
B123: 116 | O123: 0
B124: 117 | O124: 0
B125: 118 | O125: 0
B126: 119 | O126: 0
B127: 120 | O127: 0
B128: 121 | O128: 0
B129: 122 | O129: 0
B130: 123 | O130: 0
B131: 124 | O131: 0
B132: 125 | O132: 0
B133: 126 | O133: 0
B134: 127 | O134: 0
B135: 128 | O135: 0
B136: 129 | O136: 0
B137: 130 | O137: 0
B138: 131 | O138: =SUM(E138:N138) -> 0
B139: 132 | O139: 0
B140: 133 | O140: 0
B141: 134 | O141: 0
B142: 135 | O142: 0
B143: 136 | O143: 0
B144: 137 | O144: 0
B145: 138 | O145: 0
L165: =IF(J165>=60,"CLASIFICADO A 60 Km LIBRE y 80 Km NOVICIO",IF(J165>=40,"CLASIFICADO A 40 Km LIBRE y 60 Km NOVICIO","")) -> 
